'DEPARTMENT_FAMILY,ENTITY,PAYMENT_DATE,EXPENSE_TYPE,EXPENSE_AREA,SUPPLIER,TRANSACTION_NUMBER, AMOUNT ,DESCRIPTION
Ministry of Justice,LEGAL AID AGENCY,28/09/2016,221000-Property Rent and Rates,VA396-Property Costs,JONES LANG LASALLE LTD,2006871,"94,040.10 ",Property Costs
Ministry of Justice,LEGAL AID AGENCY,28/09/2016,221000-Property Rent and Rates,VA396-Property Costs,LONDON & SCOTTISH PROPERTY MANAGEMENT LTD,2006874,"57,600.00 ",Property Costs
Ministry of Justice,LEGAL AID AGENCY,23/09/2016,610400-Debtors <1 year - Prepayments & Accrued Income,VA396-Property Costs,BIRMINGHAM CITY COUNCIL,2006821,"8,796.90 ",Property Costs
Ministry of Justice,LEGAL AID AGENCY,23/09/2016,610400-Debtors <1 year - Prepayments & Accrued Income,VA396-Property Costs,BRIGHTON & HOVE CITY COUNCIL,2006822,"14,040.25 ",Property Costs
Ministry of Justice,LEGAL AID AGENCY,23/09/2016,610400-Debtors <1 year - Prepayments & Accrued Income,VA396-Property Costs,BRISTOL CITY COUNCIL,2006823,"13,170.50 ",Property Costs
Ministry of Justice,LEGAL AID AGENCY,23/09/2016,610400-Debtors <1 year - Prepayments & Accrued Income,VA396-Property Costs,CARDIFF COUNTY COUNCIL,2006824,"3,207.60 ",Property Costs
Ministry of Justice,LEGAL AID AGENCY,23/09/2016,610400-Debtors <1 year - Prepayments & Accrued Income,VA396-Property Costs,LEEDS CITY COUNCIL,2006828,"11,281.90 ",Property Costs
Ministry of Justice,LEGAL AID AGENCY,23/09/2016,610400-Debtors <1 year - Prepayments & Accrued Income,VA396-Property Costs,NOTTINGHAM CITY COUNCIL,2006829,"6,013.70 ",Property Costs
Ministry of Justice,LEGAL AID AGENCY,23/09/2016,222002-Other Property Costs,VA396-Property Costs,ORBIT PROPERTY MANAGEMENT BIRMINGHAM LTD,15239,"9,177.05 ",Property Costs
Ministry of Justice,LEGAL AID AGENCY,23/09/2016,221000-Property Rent and Rates,VA396-Property Costs,ORBIT PROPERTY MANAGEMENT BIRMINGHAM LTD,15239,"24,718.50 ",Property Costs
Ministry of Justice,LEGAL AID AGENCY,23/09/2016,610400-Debtors <1 year - Prepayments & Accrued Income,VA396-Property Costs,SOUTH TYNESIDE COUNCIL,2006831,"12,077.10 ",Property Costs
Ministry of Justice,LEGAL AID AGENCY,21/09/2016,222002-Other Property Costs,VA396-Property Costs,DTZ DEBENHAM TIE LEUNG,2006778,"4,916.79 ",Property Costs
Ministry of Justice,LEGAL AID AGENCY,21/09/2016,221000-Property Rent and Rates,VA396-Property Costs,DTZ DEBENHAM TIE LEUNG,2006778,"56,000.00 ",Property Costs
Ministry of Justice,LEGAL AID AGENCY,21/09/2016,222002-Other Property Costs,VA396-Property Costs,DTZ DEBENHAM TIE LEUNG,2006778,"62,500.00 ",Property Costs
Ministry of Justice,LEGAL AID AGENCY,21/09/2016,222002-Other Property Costs,VA396-Property Costs,JONES LANG LASALLE LTD,2006795,"51,764.11 ",Property Costs
Ministry of Justice,LEGAL AID AGENCY,21/09/2016,222002-Other Property Costs,VA396-Property Costs,KNIGHT FRANK LLP,2006797,"13,889.78 ",Property Costs
Ministry of Justice,LEGAL AID AGENCY,21/09/2016,222002-Other Property Costs,VA396-Property Costs,KNIGHT FRANK LLP,2006797,"13,964.39 ",Property Costs
Ministry of Justice,LEGAL AID AGENCY,21/09/2016,221000-Property Rent and Rates,VA396-Property Costs,KNIGHT FRANK LLP,2006797,"23,145.00 ",Property Costs
Ministry of Justice,LEGAL AID AGENCY,21/09/2016,221000-Property Rent and Rates,VA396-Property Costs,KNIGHT FRANK LLP,2006797,"23,274.00 ",Property Costs
Ministry of Justice,LEGAL AID AGENCY,21/09/2016,265000-IT & Telecommunications,VA294-ISD,REDCENTRIC SOLUTIONS LTD,2006806,"69,736.60 ",IT Costs
Ministry of Justice,LEGAL AID AGENCY,21/09/2016,265000-IT & Telecommunications,VA294-ISD,TOPLEVEL COMPUTING LTD,2006819,"26,379.00 ",IT Costs
Ministry of Justice,LEGAL AID AGENCY,14/09/2016,221000-Property Rent and Rates,VA396-Property Costs,BILFINGER GVA,2006681,"102,199.20 ",Property Costs
Ministry of Justice,LEGAL AID AGENCY,14/09/2016,222002-Other Property Costs,VA396-Property Costs,CBRE LTD,2006686,"9,356.58 ",Property Costs
Ministry of Justice,LEGAL AID AGENCY,14/09/2016,221000-Property Rent and Rates,VA396-Property Costs,CBRE LTD,2006686,"71,846.40 ",Property Costs
Ministry of Justice,LEGAL AID AGENCY,14/09/2016,222002-Other Property Costs,VA396-Property Costs,LONDON & SCOTTISH PROPERTY MANAGEMENT LTD,2006711,"33,796.40 ",Property Costs
Ministry of Justice,LEGAL AID AGENCY,14/09/2016,223000-Other Expenditure,VA395-National Courts Team,ROSSENDALES LTD,2006732,"5,536.95 ",Debt Collection Costs
Ministry of Justice,LEGAL AID AGENCY,14/09/2016,223000-Other Expenditure,VA395-National Courts Team,ROSSENDALES LTD,2006732,"31,444.00 ",Debt Enforcement Costs
Ministry of Justice,LEGAL AID AGENCY,14/09/2016,223000-Other Expenditure,VA395-National Courts Team,ROSSENDALES LTD,2006732,"45,155.91 ",Debt Enforcement Costs
Ministry of Justice,LEGAL AID AGENCY,14/09/2016,223000-Other Expenditure,VA395-National Courts Team,ROSSENDALES LTD,2006732,"82,319.87 ",Debt Collection Costs
Ministry of Justice,LEGAL AID AGENCY,14/09/2016,265000-IT & Telecommunications,"VA393-Operations, Civil",VOICENET SOLUTIONS LTD T/A 8X8 SOLUTIONS,2006746,"27,548.48 ",IT Costs
Ministry of Justice,LEGAL AID AGENCY,07/09/2016,265000-IT & Telecommunications,"VA393-Operations, Civil",NORTHGATE PUBLIC SERVICES (UK) LTD,2006638,"-106,020.00 ",Postal Costs
Ministry of Justice,LEGAL AID AGENCY,07/09/2016,265000-IT & Telecommunications,"VA393-Operations, Civil",NORTHGATE PUBLIC SERVICES (UK) LTD,2006638,"212,040.00 ",Postal Costs
Ministry of Justice,LEGAL AID AGENCY,07/09/2016,224000-Staff travel and other,VA293-Finance Directorate,REDFERN TRAVEL LTD,2006645,73.86 ,Travel Costs
Ministry of Justice,LEGAL AID AGENCY,07/09/2016,224000-Staff travel and other,VA293-Finance Directorate,REDFERN TRAVEL LTD,2006645,"47,559.01 ",Travel Costs
Ministry of Justice,LEGAL AID AGENCY,05/09/2016,512000-Intangible GBV - Additions,VA294-ISD,HOME OFFICE IT,10136,"510,562.20 ",IT Costs
MINISTRY OF JUSTICE,LEGAL AID AGENCY,29/09/2016,Civil Representation,LEGAL AID FUND,LANCASHIRE F M S,1068036:140259204,"-25,069.40",Legal Aid Payment Civil Representation
MINISTRY OF JUSTICE,LEGAL AID AGENCY,29/09/2016,Civil Representation,LEGAL AID FUND,REBECCA L DAVIES,1068039:3000000363540009RC,"-53,625.86",Legal Aid Payment Civil Representation
MINISTRY OF JUSTICE,LEGAL AID AGENCY,28/09/2016,Legal Help,LEGAL AID FUND,ABBOTSTONE LAW LLP,1065491:145385613,"62,917.00",Legal Aid Payment Legal Help
MINISTRY OF JUSTICE,LEGAL AID AGENCY,28/09/2016,Higher Crime,LEGAL AID FUND,ABDUL S IQBAL QC,1063098:145344839,"92,200.00",Legal Aid Payment Higher Crime
MINISTRY OF JUSTICE,LEGAL AID AGENCY,28/09/2016,Lower Crime,LEGAL AID FUND,ABV SOLICITORS,1066988:145385790,"80,800.00",Legal Aid Payment Lower Crime
MINISTRY OF JUSTICE,LEGAL AID AGENCY,28/09/2016,Lower Crime,LEGAL AID FUND,ACA LAW LTD,1064562:145386427,"26,271.00",Legal Aid Payment Lower Crime
MINISTRY OF JUSTICE,LEGAL AID AGENCY,28/09/2016,Higher Crime,LEGAL AID FUND,ALASDAIR WATSON & CO,1066755:145357652,"61,156.57",Legal Aid Payment Higher Crime
MINISTRY OF JUSTICE,LEGAL AID AGENCY,28/09/2016,Legal Help,LEGAL AID FUND,ALASTAIR BATEMAN & CO,1067097:145384936,"26,260.00",Legal Aid Payment Legal Help
MINISTRY OF JUSTICE,LEGAL AID AGENCY,28/09/2016,Lower Crime,LEGAL AID FUND,ALBIN & CO LTD,1067042:145386067,"40,000.00",Legal Aid Payment Lower Crime
MINISTRY OF JUSTICE,LEGAL AID AGENCY,28/09/2016,Lower Crime,LEGAL AID FUND,ALDERSON LAW LLP,1062882:145386189,"30,800.00",Legal Aid Payment Lower Crime
MINISTRY OF JUSTICE,LEGAL AID AGENCY,28/09/2016,Lower Crime,LEGAL AID FUND,ALEXANDER BENNETT,1062945:145386195,"27,000.00",Legal Aid Payment Lower Crime
MINISTRY OF JUSTICE,LEGAL AID AGENCY,28/09/2016,Higher Crime,LEGAL AID FUND,ALEXANDER CAMERON QC,1064025:145343631,"128,400.00",Legal Aid Payment Higher Crime
MINISTRY OF JUSTICE,LEGAL AID AGENCY,28/09/2016,Lower Crime,LEGAL AID FUND,ALLEN HOOLE SOLICITORS,1064272:145386098,"25,000.00",Legal Aid Payment Lower Crime
MINISTRY OF JUSTICE,LEGAL AID AGENCY,28/09/2016,Lower Crime,LEGAL AID FUND,ALLEN HOOLE SOLICITORS,1067422:145386087,"43,600.00",Legal Aid Payment Lower Crime
MINISTRY OF JUSTICE,LEGAL AID AGENCY,28/09/2016,Lower Crime,LEGAL AID FUND,AMOSU ROBINSHAW LTD,1064584:145386480,"25,139.00",Legal Aid Payment Lower Crime
MINISTRY OF JUSTICE,LEGAL AID AGENCY,28/09/2016,Higher Crime,LEGAL AID FUND,AMPHLETT LISSIMORE BAGSHAWS LLP,1062694:145366712,"86,753.68",Legal Aid Payment Higher Crime
MINISTRY OF JUSTICE,LEGAL AID AGENCY,28/09/2016,Lower Crime,LEGAL AID FUND,ANGELA PORTER SOLICITORS,1067004:145386735,"28,114.00",Legal Aid Payment Lower Crime
MINISTRY OF JUSTICE,LEGAL AID AGENCY,28/09/2016,Higher Crime,LEGAL AID FUND,APPLEBY SHAW LTD,1065346:145366810,"81,347.36",Legal Aid Payment Higher Crime
MINISTRY OF JUSTICE,LEGAL AID AGENCY,28/09/2016,Legal Help,LEGAL AID FUND,APPLEMAN LEGAL,1065484:145385617,"45,715.00",Legal Aid Payment Legal Help
MINISTRY OF JUSTICE,LEGAL AID AGENCY,28/09/2016,Lower Crime,LEGAL AID FUND,BAL DHALIWAL SOLICITORS,1067241:145386368,"30,688.00",Legal Aid Payment Lower Crime
MINISTRY OF JUSTICE,LEGAL AID AGENCY,28/09/2016,Lower Crime,LEGAL AID FUND,BANNISTER & CO,1067840:145386760,"28,585.00",Legal Aid Payment Lower Crime
MINISTRY OF JUSTICE,LEGAL AID AGENCY,28/09/2016,Higher Crime,LEGAL AID FUND,BARK & CO,1064972:145348345,"31,054.02",Legal Aid Payment Higher Crime
MINISTRY OF JUSTICE,LEGAL AID AGENCY,28/09/2016,Legal Help,LEGAL AID FUND,BARNES HARRILD & DYER,1062979:145385445,"28,469.00",Legal Aid Payment Legal Help
MINISTRY OF JUSTICE,LEGAL AID AGENCY,28/09/2016,Legal Help,LEGAL AID FUND,BARNES HARRILD & DYER,1067672:145384989,"36,545.00",Legal Aid Payment Legal Help
MINISTRY OF JUSTICE,LEGAL AID AGENCY,28/09/2016,Lower Crime,LEGAL AID FUND,BARRETT & NELLIGAN SOLICITORS LTD,1067637:145385999,"27,000.00",Legal Aid Payment Lower Crime
MINISTRY OF JUSTICE,LEGAL AID AGENCY,28/09/2016,Lower Crime,LEGAL AID FUND,BELMORES SOLICITORS LTD,1064419:145386339,"37,716.00",Legal Aid Payment Lower Crime
MINISTRY OF JUSTICE,LEGAL AID AGENCY,28/09/2016,Higher Crime,LEGAL AID FUND,BENJAMIN DOUGLAS-JONES,1063697:145394420,"30,120.00",Legal Aid Payment Higher Crime
MINISTRY OF JUSTICE,LEGAL AID AGENCY,28/09/2016,Civil Representation,LEGAL AID FUND,BERRY & LAMBERTS SOLICITORS,1067893:145351917,"28,565.26",Legal Aid Payment Civil Representation
MINISTRY OF JUSTICE,LEGAL AID AGENCY,28/09/2016,Lower Crime,LEGAL AID FUND,BESWICKS SOLICITORS LLP,1067725:145386813,"40,826.00",Legal Aid Payment Lower Crime
MINISTRY OF JUSTICE,LEGAL AID AGENCY,28/09/2016,Lower Crime,LEGAL AID FUND,BHATIA BEST LTD,1067404:145385675,"35,200.00",Legal Aid Payment Lower Crime
MINISTRY OF JUSTICE,LEGAL AID AGENCY,28/09/2016,Lower Crime,LEGAL AID FUND,BHATIA BEST LTD,1067406:145385671,"67,000.00",Legal Aid Payment Lower Crime
MINISTRY OF JUSTICE,LEGAL AID AGENCY,28/09/2016,Civil Representation,LEGAL AID FUND,BINDMANS LLP,1064732:145340858,"25,930.93",Legal Aid Payment Civil Representation
MINISTRY OF JUSTICE,LEGAL AID AGENCY,28/09/2016,Legal Help,LEGAL AID FUND,BINDMANS LLP,1064732:145384566,"43,800.00",Legal Aid Payment Legal Help
MINISTRY OF JUSTICE,LEGAL AID AGENCY,28/09/2016,Lower Crime,LEGAL AID FUND,BINDMANS LLP,1064732:145386450,"61,026.00",Legal Aid Payment Lower Crime
MINISTRY OF JUSTICE,LEGAL AID AGENCY,28/09/2016,Higher Crime,LEGAL AID FUND,BIRDS SOLICITORS LTD,1064538:145347689,"37,965.79",Legal Aid Payment Higher Crime
MINISTRY OF JUSTICE,LEGAL AID AGENCY,28/09/2016,Lower Crime,LEGAL AID FUND,BIRDS SOLICITORS LTD,1064538:145385774,"54,000.00",Legal Aid Payment Lower Crime
MINISTRY OF JUSTICE,LEGAL AID AGENCY,28/09/2016,Legal Help,LEGAL AID FUND,BISON SOLICITORS LTD,1065498:145378814,"100,166.00",Legal Aid Payment Legal Help
MINISTRY OF JUSTICE,LEGAL AID AGENCY,28/09/2016,Lower Crime,LEGAL AID FUND,BLACKFORDS LLP,1065271:145386400,"38,048.00",Legal Aid Payment Lower Crime
MINISTRY OF JUSTICE,LEGAL AID AGENCY,28/09/2016,Higher Crime,LEGAL AID FUND,BLACKFORDS LLP,1065271:145395693,"40,732.14",Legal Aid Payment Higher Crime
MINISTRY OF JUSTICE,LEGAL AID AGENCY,28/09/2016,Lower Crime,LEGAL AID FUND,BLACKWELLS,1064467:145385931,"43,800.00",Legal Aid Payment Lower Crime
MINISTRY OF JUSTICE,LEGAL AID AGENCY,28/09/2016,Lower Crime,LEGAL AID FUND,BOBBETTS MACKAN,1067766:145386085,"42,000.00",Legal Aid Payment Lower Crime
MINISTRY OF JUSTICE,LEGAL AID AGENCY,28/09/2016,Lower Crime,LEGAL AID FUND,BOND JOSEPH,1067101:145386689,"30,584.00",Legal Aid Payment Lower Crime
MINISTRY OF JUSTICE,LEGAL AID AGENCY,28/09/2016,Lower Crime,LEGAL AID FUND,BOOTS STARKE GOACHER SOLICITORS,1067239:145386702,"36,100.00",Legal Aid Payment Lower Crime
MINISTRY OF JUSTICE,LEGAL AID AGENCY,28/09/2016,Lower Crime,LEGAL AID FUND,BRADY EASTWOOD PIERCE & STEWART,1065216:145386443,"25,817.00",Legal Aid Payment Lower Crime
MINISTRY OF JUSTICE,LEGAL AID AGENCY,28/09/2016,Civil Representation,LEGAL AID FUND,BRIDGE MCFARLAND,1067426:145377858,"26,332.00",Legal Aid Payment Civil Representation
MINISTRY OF JUSTICE,LEGAL AID AGENCY,28/09/2016,Legal Help,LEGAL AID FUND,BRIGHTON HOUSING TRUST,1064121:145385313,"40,553.00",Legal Aid Payment Legal Help
MINISTRY OF JUSTICE,LEGAL AID AGENCY,28/09/2016,Lower Crime,LEGAL AID FUND,BULLIVANT LAW LTD,1066962:145385757,"41,000.00",Legal Aid Payment Lower Crime
MINISTRY OF JUSTICE,LEGAL AID AGENCY,28/09/2016,Legal Help,LEGAL AID FUND,BURKE NIAZI  LTD,1065028:145378802,"120,000.00",Legal Aid Payment Legal Help
MINISTRY OF JUSTICE,LEGAL AID AGENCY,28/09/2016,Lower Crime,LEGAL AID FUND,BURTON COPELAND LLP,1067302:145386670,"27,694.00",Legal Aid Payment Lower Crime
MINISTRY OF JUSTICE,LEGAL AID AGENCY,28/09/2016,Legal Help,LEGAL AID FUND,BUTLER & CO,1064424:145384456,"36,500.00",Legal Aid Payment Legal Help
MINISTRY OF JUSTICE,LEGAL AID AGENCY,28/09/2016,Higher Crime,LEGAL AID FUND,CAIRNS L D NELSON QC,1063798:145362690,"37,800.00",Legal Aid Payment Higher Crime
MINISTRY OF JUSTICE,LEGAL AID AGENCY,28/09/2016,Civil Representation,LEGAL AID FUND,CAROLINE W TOPPING,1063922:145351927,"46,224.00",Legal Aid Payment Civil Representation
MINISTRY OF JUSTICE,LEGAL AID AGENCY,28/09/2016,Lower Crime,LEGAL AID FUND,CARRINGTONS SOLICITORS,1066957:145386304,"168,652.00",Legal Aid Payment Lower Crime
MINISTRY OF JUSTICE,LEGAL AID AGENCY,28/09/2016,Higher Crime,LEGAL AID FUND,CARTER MOORE SOLICITORS LTD,1064391:145338802,"27,736.94",Legal Aid Payment Higher Crime
MINISTRY OF JUSTICE,LEGAL AID AGENCY,28/09/2016,Lower Crime,LEGAL AID FUND,CARTER OSBORNE LTD,1064813:145386297,"28,743.00",Legal Aid Payment Lower Crime
MINISTRY OF JUSTICE,LEGAL AID AGENCY,28/09/2016,Lower Crime,LEGAL AID FUND,CARTER OSBORNE LTD,1064812:145386300,"40,554.00",Legal Aid Payment Lower Crime
MINISTRY OF JUSTICE,LEGAL AID AGENCY,28/09/2016,Lower Crime,LEGAL AID FUND,CARTWRIGHT KING SOLICITORS,1067134:145386312,"28,422.00",Legal Aid Payment Lower Crime
MINISTRY OF JUSTICE,LEGAL AID AGENCY,28/09/2016,Lower Crime,LEGAL AID FUND,CARTWRIGHT KING SOLICITORS,1062805:145386199,"28,900.00",Legal Aid Payment Lower Crime
MINISTRY OF JUSTICE,LEGAL AID AGENCY,28/09/2016,Lower Crime,LEGAL AID FUND,CARTWRIGHT KING SOLICITORS,1062802:145387098,"29,770.00",Legal Aid Payment Lower Crime
MINISTRY OF JUSTICE,LEGAL AID AGENCY,28/09/2016,Lower Crime,LEGAL AID FUND,CARTWRIGHT KING SOLICITORS,1062803:145386201,"40,900.00",Legal Aid Payment Lower Crime
MINISTRY OF JUSTICE,LEGAL AID AGENCY,28/09/2016,Higher Crime,LEGAL AID FUND,CARTWRIGHT KING SOLICITORS,1067135:145353021,"47,350.21",Legal Aid Payment Higher Crime
MINISTRY OF JUSTICE,LEGAL AID AGENCY,28/09/2016,Lower Crime,LEGAL AID FUND,CARTWRIGHT KING SOLICITORS,1067135:145386309,"51,174.00",Legal Aid Payment Lower Crime
MINISTRY OF JUSTICE,LEGAL AID AGENCY,28/09/2016,Legal Help,LEGAL AID FUND,CARTWRIGHT KING SOLICITORS,1067135:145385148,"79,404.00",Legal Aid Payment Legal Help
MINISTRY OF JUSTICE,LEGAL AID AGENCY,28/09/2016,Higher Crime,LEGAL AID FUND,CHARLES J A MORGAN,1063587:145338434,"25,731.72",Legal Aid Payment Higher Crime
MINISTRY OF JUSTICE,LEGAL AID AGENCY,28/09/2016,Civil Representation,LEGAL AID FUND,CHARLES N GEEKIE QC,1066362:144792801,"33,206.05",Legal Aid Payment Civil Representation
MINISTRY OF JUSTICE,LEGAL AID AGENCY,28/09/2016,Higher Crime,LEGAL AID FUND,CHRISTOPHER CLEE QC,1066130:145356645,"26,411.40",Legal Aid Payment Higher Crime
MINISTRY OF JUSTICE,LEGAL AID AGENCY,28/09/2016,Civil Representation,LEGAL AID FUND,CHRISTOPHER GODFREY,1063470:3000000569310031,"26,060.40",Legal Aid Payment Civil Representation
MINISTRY OF JUSTICE,LEGAL AID AGENCY,28/09/2016,Lower Crime,LEGAL AID FUND,CHURCHERS BOLITHO WAY,1064334:145386054,"39,500.00",Legal Aid Payment Lower Crime
MINISTRY OF JUSTICE,LEGAL AID AGENCY,28/09/2016,Lower Crime,LEGAL AID FUND,CJCH SOLICITORS,1063193:145387055,"25,308.00",Legal Aid Payment Lower Crime
MINISTRY OF JUSTICE,LEGAL AID AGENCY,28/09/2016,Legal Help,LEGAL AID FUND,CJCH SOLICITORS,1062818:145385622,"29,767.00",Legal Aid Payment Legal Help
MINISTRY OF JUSTICE,LEGAL AID AGENCY,28/09/2016,Lower Crime,LEGAL AID FUND,CLARKE KIERNAN LLP,1064555:145386679,"31,295.00",Legal Aid Payment Lower Crime
MINISTRY OF JUSTICE,LEGAL AID AGENCY,28/09/2016,Legal Help,LEGAL AID FUND,CONFREYS,1065193:145384865,"27,125.00",Legal Aid Payment Legal Help
MINISTRY OF JUSTICE,LEGAL AID AGENCY,28/09/2016,Lower Crime,LEGAL AID FUND,CONNOR ROSS-BROWN SOLICITORS,1063216:145386186,"35,000.00",Legal Aid Payment Lower Crime
MINISTRY OF JUSTICE,LEGAL AID AGENCY,28/09/2016,Higher Crime,LEGAL AID FUND,CORKER BINNING,1064532:145379340,"75,927.36",Legal Aid Payment Higher Crime
MINISTRY OF JUSTICE,LEGAL AID AGENCY,28/09/2016,Lower Crime,LEGAL AID FUND,COULSON READ LEWIS SOLICITORS,1064438:145386830,"26,883.00",Legal Aid Payment Lower Crime
MINISTRY OF JUSTICE,LEGAL AID AGENCY,28/09/2016,Lower Crime,LEGAL AID FUND,COUSINS TYRER SOLICITORS,1064887:145386579,"25,153.00",Legal Aid Payment Lower Crime
MINISTRY OF JUSTICE,LEGAL AID AGENCY,28/09/2016,Civil Representation,LEGAL AID FUND,CREIGHTON & PARTNERS,1067149:145395733,"26,759.46",Legal Aid Payment Civil Representation
MINISTRY OF JUSTICE,LEGAL AID AGENCY,28/09/2016,Lower Crime,LEGAL AID FUND,CRIMINAL DEFENCE ASSOCIATES,1066953:145385706,"42,500.00",Legal Aid Payment Lower Crime
MINISTRY OF JUSTICE,LEGAL AID AGENCY,28/09/2016,Lower Crime,LEGAL AID FUND,CRIMINAL DEFENCE MILTON KEYNES LTD,1066871:145386057,"38,500.00",Legal Aid Payment Lower Crime
MINISTRY OF JUSTICE,LEGAL AID AGENCY,28/09/2016,Lower Crime,LEGAL AID FUND,CRIMINAL DEFENCE SOLICITORS,1064409:145385828,"31,900.00",Legal Aid Payment Lower Crime
MINISTRY OF JUSTICE,LEGAL AID AGENCY,28/09/2016,Lower Crime,LEGAL AID FUND,CROWE HUMBLE WESENCRAFT,1064635:145385886,"34,200.00",Legal Aid Payment Lower Crime
MINISTRY OF JUSTICE,LEGAL AID AGENCY,28/09/2016,Lower Crime,LEGAL AID FUND,DALTON HOLMES GRAY,1064670:145386458,"40,758.00",Legal Aid Payment Lower Crime
MINISTRY OF JUSTICE,LEGAL AID AGENCY,28/09/2016,Higher Crime,LEGAL AID FUND,DANIEL D W OSCROFT,1063671:145394416,"31,162.80",Legal Aid Payment Higher Crime
MINISTRY OF JUSTICE,LEGAL AID AGENCY,28/09/2016,Lower Crime,LEGAL AID FUND,DARRYL INGRAM & CO,1067021:145385799,"27,600.00",Legal Aid Payment Lower Crime
MINISTRY OF JUSTICE,LEGAL AID AGENCY,28/09/2016,Higher Crime,LEGAL AID FUND,DARTON LAW LIMITED,1066722:145366650,"43,914.56",Legal Aid Payment Higher Crime
MINISTRY OF JUSTICE,LEGAL AID AGENCY,28/09/2016,Higher Crime,LEGAL AID FUND,DARTON LAW LIMITED,1066722:145388209,"51,031.51",Legal Aid Payment Higher Crime
MINISTRY OF JUSTICE,LEGAL AID AGENCY,28/09/2016,Lower Crime,LEGAL AID FUND,DAVID GRAY LLP,1064475:145385884,"27,000.00",Legal Aid Payment Lower Crime
MINISTRY OF JUSTICE,LEGAL AID AGENCY,28/09/2016,Legal Help,LEGAL AID FUND,DAVID GRAY LLP,1064475:145385116,"38,220.00",Legal Aid Payment Legal Help
MINISTRY OF JUSTICE,LEGAL AID AGENCY,28/09/2016,Lower Crime,LEGAL AID FUND,DEVON DEFENCE SOLICITORS & ADVOCATES,1067763:145386746,"29,129.00",Legal Aid Payment Lower Crime
MINISTRY OF JUSTICE,LEGAL AID AGENCY,28/09/2016,Legal Help,LEGAL AID FUND,DH LAW LTD,1064116:145385339,"30,159.00",Legal Aid Payment Legal Help
MINISTRY OF JUSTICE,LEGAL AID AGENCY,28/09/2016,Higher Crime,LEGAL AID FUND,DIANA ELLIS QC,1064018:145388449,"70,116.19",Legal Aid Payment Higher Crime
MINISTRY OF JUSTICE,LEGAL AID AGENCY,28/09/2016,Lower Crime,LEGAL AID FUND,DJMS SOLICITORS LTD,1065726:145387060,"25,477.00",Legal Aid Payment Lower Crime
MINISTRY OF JUSTICE,LEGAL AID AGENCY,28/09/2016,Higher Crime,LEGAL AID FUND,DJMS SOLICITORS LTD,1064427:145366826,"28,384.28",Legal Aid Payment Higher Crime
MINISTRY OF JUSTICE,LEGAL AID AGENCY,28/09/2016,Lower Crime,LEGAL AID FUND,DJMS SOLICITORS LTD,1066810:145386509,"41,091.00",Legal Aid Payment Lower Crime
MINISTRY OF JUSTICE,LEGAL AID AGENCY,28/09/2016,Higher Crime,LEGAL AID FUND,DJMS SOLICITORS LTD,1066810:145366682,"116,008.49",Legal Aid Payment Higher Crime
MINISTRY OF JUSTICE,LEGAL AID AGENCY,28/09/2016,Legal Help,LEGAL AID FUND,DONOVAN NEWTON SOLICITORS,1066929:145381249,"42,557.00",Legal Aid Payment Legal Help
MINISTRY OF JUSTICE,LEGAL AID AGENCY,28/09/2016,Lower Crime,LEGAL AID FUND,DPP LAW LTD,1064566:145385849,"27,800.00",Legal Aid Payment Lower Crime
MINISTRY OF JUSTICE,LEGAL AID AGENCY,28/09/2016,Lower Crime,LEGAL AID FUND,DPP LAW LTD,1064565:145385789,"28,400.00",Legal Aid Payment Lower Crime
MINISTRY OF JUSTICE,LEGAL AID AGENCY,28/09/2016,Lower Crime,LEGAL AID FUND,DRISCOLL YOUNG SOLICITORS LTD,1067182:145386227,"32,128.00",Legal Aid Payment Lower Crime
MINISTRY OF JUSTICE,LEGAL AID AGENCY,28/09/2016,Higher Crime,LEGAL AID FUND,DUNCAN LEWIS,1067255:145388721,"25,152.88",Legal Aid Payment Higher Crime
MINISTRY OF JUSTICE,LEGAL AID AGENCY,28/09/2016,Lower Crime,LEGAL AID FUND,DUNCAN LEWIS,1067256:145386430,"47,025.00",Legal Aid Payment Lower Crime
MINISTRY OF JUSTICE,LEGAL AID AGENCY,28/09/2016,Legal Help,LEGAL AID FUND,DUNCAN LEWIS,1062856:145384705,"59,300.00",Legal Aid Payment Legal Help
MINISTRY OF JUSTICE,LEGAL AID AGENCY,28/09/2016,Lower Crime,LEGAL AID FUND,DUNCAN LEWIS,1067255:145385805,"127,200.00",Legal Aid Payment Lower Crime
MINISTRY OF JUSTICE,LEGAL AID AGENCY,28/09/2016,Legal Help,LEGAL AID FUND,DUNCAN LEWIS,1067255:145378801,"268,400.00",Legal Aid Payment Legal Help
MINISTRY OF JUSTICE,LEGAL AID AGENCY,28/09/2016,Legal Help,LEGAL AID FUND,DUNCAN LEWIS,1067256:145378736,"400,000.00",Legal Aid Payment Legal Help
MINISTRY OF JUSTICE,LEGAL AID AGENCY,28/09/2016,Lower Crime,LEGAL AID FUND,EBR ATTRIDGE LLP,1064363:145385777,"34,200.00",Legal Aid Payment Lower Crime
MINISTRY OF JUSTICE,LEGAL AID AGENCY,28/09/2016,Lower Crime,LEGAL AID FUND,EBR ATTRIDGE LLP,1064365:145385768,"38,400.00",Legal Aid Payment Lower Crime
MINISTRY OF JUSTICE,LEGAL AID AGENCY,28/09/2016,Lower Crime,LEGAL AID FUND,EDWARD FAIL BRADSHAW & WATERSON,1067883:145386473,"34,563.00",Legal Aid Payment Lower Crime
MINISTRY OF JUSTICE,LEGAL AID AGENCY,28/09/2016,Lower Crime,LEGAL AID FUND,EDWARDS DUTHIE,1065217:145387085,"35,159.00",Legal Aid Payment Lower Crime
MINISTRY OF JUSTICE,LEGAL AID AGENCY,28/09/2016,Higher Crime,LEGAL AID FUND,EDWARDS DUTHIE,1065217:145347234,"45,844.47",Legal Aid Payment Higher Crime
MINISTRY OF JUSTICE,LEGAL AID AGENCY,28/09/2016,Higher Crime,LEGAL AID FUND,EKWALL S TIWANA,1066275:145388341,"35,645.02",Legal Aid Payment Higher Crime
MINISTRY OF JUSTICE,LEGAL AID AGENCY,28/09/2016,Legal Help,LEGAL AID FUND,ELDER RAHIMI LIMITED,1065815:145385372,"25,972.00",Legal Aid Payment Legal Help
MINISTRY OF JUSTICE,LEGAL AID AGENCY,28/09/2016,Higher Crime,LEGAL AID FUND,ELLIOT MATHER LLP,1067433:145353267,"45,919.51",Legal Aid Payment Higher Crime
MINISTRY OF JUSTICE,LEGAL AID AGENCY,28/09/2016,Higher Crime,LEGAL AID FUND,ESN SOLICITORS,1067057:145347397,"45,444.32",Legal Aid Payment Higher Crime
MINISTRY OF JUSTICE,LEGAL AID AGENCY,28/09/2016,Lower Crime,LEGAL AID FUND,EWINGS & CO,1067749:145385783,"27,100.00",Legal Aid Payment Lower Crime
MINISTRY OF JUSTICE,LEGAL AID AGENCY,28/09/2016,Legal Help,LEGAL AID FUND,FADIGA & CO LTD,1067576:145384985,"39,254.00",Legal Aid Payment Legal Help
MINISTRY OF JUSTICE,LEGAL AID AGENCY,28/09/2016,Lower Crime,LEGAL AID FUND,FARLEYS SOLICITORS LLP,1067562:145385970,"29,900.00",Legal Aid Payment Lower Crime
MINISTRY OF JUSTICE,LEGAL AID AGENCY,28/09/2016,Lower Crime,LEGAL AID FUND,FISHER COWE,1064355:145386344,"44,469.00",Legal Aid Payment Lower Crime
MINISTRY OF JUSTICE,LEGAL AID AGENCY,28/09/2016,Lower Crime,LEGAL AID FUND,FMW LAW LTD,1067678:145385747,"69,300.00",Legal Aid Payment Lower Crime
MINISTRY OF JUSTICE,LEGAL AID AGENCY,28/09/2016,Lower Crime,LEGAL AID FUND,FORBES SOLICITORS,1064649:145385984,"25,600.00",Legal Aid Payment Lower Crime
MINISTRY OF JUSTICE,LEGAL AID AGENCY,28/09/2016,Legal Help,LEGAL AID FUND,FOUNTAIN SOLICITORS LTD,1066905:145384423,"36,000.00",Legal Aid Payment Legal Help
MINISTRY OF JUSTICE,LEGAL AID AGENCY,28/09/2016,Lower Crime,LEGAL AID FUND,FREEMANS SOLICITORS.,1065245:145385821,"27,900.00",Legal Aid Payment Lower Crime
MINISTRY OF JUSTICE,LEGAL AID AGENCY,28/09/2016,Lower Crime,LEGAL AID FUND,G T STEWART SOLICITORS,1066800:145386923,"25,699.00",Legal Aid Payment Lower Crime
MINISTRY OF JUSTICE,LEGAL AID AGENCY,28/09/2016,Legal Help,LEGAL AID FUND,G T STEWART SOLICITORS,1064388:145385623,"28,194.00",Legal Aid Payment Legal Help
MINISTRY OF JUSTICE,LEGAL AID AGENCY,28/09/2016,Lower Crime,LEGAL AID FUND,G T STEWART SOLICITORS,1066801:145386922,"34,449.00",Legal Aid Payment Lower Crime
MINISTRY OF JUSTICE,LEGAL AID AGENCY,28/09/2016,Lower Crime,LEGAL AID FUND,G T STEWART SOLICITORS,1066795:145386927,"47,484.00",Legal Aid Payment Lower Crime
MINISTRY OF JUSTICE,LEGAL AID AGENCY,28/09/2016,Lower Crime,LEGAL AID FUND,G T STEWART SOLICITORS,1064388:145386465,"55,121.00",Legal Aid Payment Lower Crime
MINISTRY OF JUSTICE,LEGAL AID AGENCY,28/09/2016,Lower Crime,LEGAL AID FUND,GALBRAITH BRANLEY SOLICITORS,1064713:145386416,"26,775.00",Legal Aid Payment Lower Crime
MINISTRY OF JUSTICE,LEGAL AID AGENCY,28/09/2016,Lower Crime,LEGAL AID FUND,"GAMMON,PIERCY & GAIGER",1065283:145386709,"30,064.00",Legal Aid Payment Lower Crime
MINISTRY OF JUSTICE,LEGAL AID AGENCY,28/09/2016,Higher Crime,LEGAL AID FUND,GARY T BELL QC,1066318:145388504,"34,279.82",Legal Aid Payment Higher Crime
MINISTRY OF JUSTICE,LEGAL AID AGENCY,28/09/2016,Civil Representation,LEGAL AID FUND,GC SOLICITORS,1067013:145342713,"31,411.09",Legal Aid Payment Civil Representation
MINISTRY OF JUSTICE,LEGAL AID AGENCY,28/09/2016,Legal Help,LEGAL AID FUND,GENESIS LAW ASSOCIATES SOLICITORS LTD,1065544:145385477,"30,655.00",Legal Aid Payment Legal Help
MINISTRY OF JUSTICE,LEGAL AID AGENCY,28/09/2016,Lower Crime,LEGAL AID FUND,GEOFF WHITE & CO,1066867:145381391,"28,133.00",Legal Aid Payment Lower Crime
MINISTRY OF JUSTICE,LEGAL AID AGENCY,28/09/2016,Lower Crime,LEGAL AID FUND,GEOFF WHITE & CO,1066867:145381390,"30,000.00",Legal Aid Payment Lower Crime
MINISTRY OF JUSTICE,LEGAL AID AGENCY,28/09/2016,Lower Crime,LEGAL AID FUND,GEOFFREY FORRESTER & CO,1067513:145385879,"35,100.00",Legal Aid Payment Lower Crime
MINISTRY OF JUSTICE,LEGAL AID AGENCY,28/09/2016,Higher Crime,LEGAL AID FUND,GEOFFREY PAYNE,1063120:145394545,"35,620.01",Legal Aid Payment Higher Crime
MINISTRY OF JUSTICE,LEGAL AID AGENCY,28/09/2016,Higher Crime,LEGAL AID FUND,GERALD ARMSTRONG,1067469:145357013,"37,791.76",Legal Aid Payment Higher Crime
MINISTRY OF JUSTICE,LEGAL AID AGENCY,28/09/2016,Lower Crime,LEGAL AID FUND,GHP LEGAL,1067204:145385664,"43,800.00",Legal Aid Payment Lower Crime
MINISTRY OF JUSTICE,LEGAL AID AGENCY,28/09/2016,Higher Crime,LEGAL AID FUND,GILES NEWELL,1066619:145347988,"-31,068.00",Legal Aid Payment Higher Crime
MINISTRY OF JUSTICE,LEGAL AID AGENCY,28/09/2016,Higher Crime,LEGAL AID FUND,GILES NEWELL,1066619:145348100,"37,340.30",Legal Aid Payment Higher Crime
MINISTRY OF JUSTICE,LEGAL AID AGENCY,28/09/2016,Legal Help,LEGAL AID FUND,GLEDHILL SOLICITORS,1065294:145384770,"67,900.00",Legal Aid Payment Legal Help
MINISTRY OF JUSTICE,LEGAL AID AGENCY,28/09/2016,Lower Crime,LEGAL AID FUND,GRAHAM EVANS & PARTNERS LLP,1067703:145385655,"31,900.00",Legal Aid Payment Lower Crime
MINISTRY OF JUSTICE,LEGAL AID AGENCY,28/09/2016,Higher Crime,LEGAL AID FUND,GRAHAM R TREMBATH QC,1063699:145394413,"60,000.00",Legal Aid Payment Higher Crime
MINISTRY OF JUSTICE,LEGAL AID AGENCY,28/09/2016,Higher Crime,LEGAL AID FUND,GRAHAM S HENSON,1066316:145337616,"27,873.18",Legal Aid Payment Higher Crime
MINISTRY OF JUSTICE,LEGAL AID AGENCY,28/09/2016,Lower Crime,LEGAL AID FUND,GRECH GOODEN SOLICITORS LTD,1064310:145386260,"41,070.00",Legal Aid Payment Lower Crime
MINISTRY OF JUSTICE,LEGAL AID AGENCY,28/09/2016,Legal Help,LEGAL AID FUND,GUILE NICHOLAS-INC DONALD GALBRAITH & CO,1065412:145385603,"34,133.00",Legal Aid Payment Legal Help
MINISTRY OF JUSTICE,LEGAL AID AGENCY,28/09/2016,Legal Help,LEGAL AID FUND,GUILE NICHOLAS-INC DONALD GALBRAITH & CO,1066908:145384559,"73,400.00",Legal Aid Payment Legal Help
MINISTRY OF JUSTICE,LEGAL AID AGENCY,28/09/2016,Lower Crime,LEGAL AID FUND,GUNEY CLARK & RYAN LTD CO,1064403:145386436,"47,136.00",Legal Aid Payment Lower Crime
MINISTRY OF JUSTICE,LEGAL AID AGENCY,28/09/2016,Lower Crime,LEGAL AID FUND,GURNEY HARDEN SOLICITORS,1064340:145386683,"36,927.00",Legal Aid Payment Lower Crime
MINISTRY OF JUSTICE,LEGAL AID AGENCY,28/09/2016,Lower Crime,LEGAL AID FUND,GWB HARTHILLS LLP,1064464:145386552,"41,161.00",Legal Aid Payment Lower Crime
MINISTRY OF JUSTICE,LEGAL AID AGENCY,28/09/2016,Lower Crime,LEGAL AID FUND,H P GOWER SOLICITORS,1064220:145386973,"53,100.00",Legal Aid Payment Lower Crime
MINISTRY OF JUSTICE,LEGAL AID AGENCY,28/09/2016,Lower Crime,LEGAL AID FUND,HAMER CHILDS,1065081:145386142,"25,000.00",Legal Aid Payment Lower Crime
MINISTRY OF JUSTICE,LEGAL AID AGENCY,28/09/2016,Lower Crime,LEGAL AID FUND,HARRIS CUFFARO & NICHOLS,1064993:145385720,"48,200.00",Legal Aid Payment Lower Crime
MINISTRY OF JUSTICE,LEGAL AID AGENCY,28/09/2016,Lower Crime,LEGAL AID FUND,HARRIS SOLICITORS,1064188:145386949,"25,474.00",Legal Aid Payment Lower Crime
MINISTRY OF JUSTICE,LEGAL AID AGENCY,28/09/2016,Higher Crime,LEGAL AID FUND,HARRIS SOLICITORS,1064188:145348336,"95,707.01",Legal Aid Payment Higher Crime
MINISTRY OF JUSTICE,LEGAL AID AGENCY,28/09/2016,Lower Crime,LEGAL AID FUND,HASKELL & CO,1066895:145381375,"39,401.00",Legal Aid Payment Lower Crime
MINISTRY OF JUSTICE,LEGAL AID AGENCY,28/09/2016,Lower Crime,LEGAL AID FUND,HAYES LAW SOLICITORS AND ADVOCATES LLP,1063158:145387086,"35,641.00",Legal Aid Payment Lower Crime
MINISTRY OF JUSTICE,LEGAL AID AGENCY,28/09/2016,Lower Crime,LEGAL AID FUND,HDH LAW,1064207:145386174,"25,000.00",Legal Aid Payment Lower Crime
MINISTRY OF JUSTICE,LEGAL AID AGENCY,28/09/2016,Lower Crime,LEGAL AID FUND,HE LAW LTD,1064168:145387012,"28,197.00",Legal Aid Payment Lower Crime
MINISTRY OF JUSTICE,LEGAL AID AGENCY,28/09/2016,Lower Crime,LEGAL AID FUND,HEALEY COLBON,1064278:145385718,"27,300.00",Legal Aid Payment Lower Crime
MINISTRY OF JUSTICE,LEGAL AID AGENCY,28/09/2016,Higher Crime,LEGAL AID FUND,HEALEY COLBON,1066995:145365712,"97,258.75",Legal Aid Payment Higher Crime
MINISTRY OF JUSTICE,LEGAL AID AGENCY,28/09/2016,Lower Crime,LEGAL AID FUND,HENNESSY & HAMMUDI,1066969:145386068,"50,000.00",Legal Aid Payment Lower Crime
MINISTRY OF JUSTICE,LEGAL AID AGENCY,28/09/2016,Higher Crime,LEGAL AID FUND,HENRY BLAXLAND QC,1063051:145366786,"60,389.57",Legal Aid Payment Higher Crime
MINISTRY OF JUSTICE,LEGAL AID AGENCY,28/09/2016,Legal Help,LEGAL AID FUND,HENRY HYAMS,1064897:145384946,"30,069.00",Legal Aid Payment Legal Help
MINISTRY OF JUSTICE,LEGAL AID AGENCY,28/09/2016,Lower Crime,LEGAL AID FUND,HENRY HYAMS,1064897:145386577,"45,831.00",Legal Aid Payment Lower Crime
MINISTRY OF JUSTICE,LEGAL AID AGENCY,28/09/2016,Lower Crime,LEGAL AID FUND,HENRY'S SOLICITORS LTD,1067147:145386015,"73,900.00",Legal Aid Payment Lower Crime
MINISTRY OF JUSTICE,LEGAL AID AGENCY,28/09/2016,Lower Crime,LEGAL AID FUND,HENSCOTT SOLICITORS,1064512:145386419,"26,926.00",Legal Aid Payment Lower Crime
MINISTRY OF JUSTICE,LEGAL AID AGENCY,28/09/2016,Lower Crime,LEGAL AID FUND,HINE SOLICITORS,1066809:145386932,"32,007.00",Legal Aid Payment Lower Crime
MINISTRY OF JUSTICE,LEGAL AID AGENCY,28/09/2016,Lower Crime,LEGAL AID FUND,HINE SOLICITORS,1066808:145386933,"32,048.00",Legal Aid Payment Lower Crime
MINISTRY OF JUSTICE,LEGAL AID AGENCY,28/09/2016,Lower Crime,LEGAL AID FUND,HINE SOLICITORS,1064178:145386930,"32,295.00",Legal Aid Payment Lower Crime
MINISTRY OF JUSTICE,LEGAL AID AGENCY,28/09/2016,Lower Crime,LEGAL AID FUND,HINE SOLICITORS,1064180:145386929,"43,879.00",Legal Aid Payment Lower Crime
MINISTRY OF JUSTICE,LEGAL AID AGENCY,28/09/2016,Lower Crime,LEGAL AID FUND,HINE SOLICITORS,1066806:145386935,"51,934.00",Legal Aid Payment Lower Crime
MINISTRY OF JUSTICE,LEGAL AID AGENCY,28/09/2016,Lower Crime,LEGAL AID FUND,HINE SOLICITORS,1064177:145386931,"62,037.00",Legal Aid Payment Lower Crime
MINISTRY OF JUSTICE,LEGAL AID AGENCY,28/09/2016,Lower Crime,LEGAL AID FUND,HINE SOLICITORS,1066807:145386934,"75,834.00",Legal Aid Payment Lower Crime
MINISTRY OF JUSTICE,LEGAL AID AGENCY,28/09/2016,Higher Crime,LEGAL AID FUND,HINE SOLICITORS-ADVOCATE,1063333:145366055,"28,037.26",Legal Aid Payment Higher Crime
MINISTRY OF JUSTICE,LEGAL AID AGENCY,28/09/2016,Lower Crime,LEGAL AID FUND,HODGE JONES & ALLEN LLP,1065133:145386448,"74,977.00",Legal Aid Payment Lower Crime
MINISTRY OF JUSTICE,LEGAL AID AGENCY,28/09/2016,Lower Crime,LEGAL AID FUND,HOWARD & BYRNE SOLICITORS,1064535:145385926,"43,000.00",Legal Aid Payment Lower Crime
MINISTRY OF JUSTICE,LEGAL AID AGENCY,28/09/2016,Legal Help,LEGAL AID FUND,HOWE & CO,1064466:145378809,"121,054.00",Legal Aid Payment Legal Help
MINISTRY OF JUSTICE,LEGAL AID AGENCY,28/09/2016,Legal Help,LEGAL AID FUND,HOWELLS LLP,1064881:145384510,"34,800.00",Legal Aid Payment Legal Help
MINISTRY OF JUSTICE,LEGAL AID AGENCY,28/09/2016,Lower Crime,LEGAL AID FUND,HOWELLS LLP,1064881:145385908,"52,900.00",Legal Aid Payment Lower Crime
MINISTRY OF JUSTICE,LEGAL AID AGENCY,28/09/2016,Legal Help,LEGAL AID FUND,HUNT & COOMBS LLP,1067364:145384488,"32,200.00",Legal Aid Payment Legal Help
MINISTRY OF JUSTICE,LEGAL AID AGENCY,28/09/2016,Higher Crime,LEGAL AID FUND,I B B SOLICITORS,1067018:145366777,"97,258.75",Legal Aid Payment Higher Crime
MINISTRY OF JUSTICE,LEGAL AID AGENCY,28/09/2016,Lower Crime,LEGAL AID FUND,I B B SOLICITORS,1067018:145385787,"98,100.00",Legal Aid Payment Lower Crime
MINISTRY OF JUSTICE,LEGAL AID AGENCY,28/09/2016,Lower Crime,LEGAL AID FUND,IAN HENERY LTD,1064536:145386835,"31,859.00",Legal Aid Payment Lower Crime
MINISTRY OF JUSTICE,LEGAL AID AGENCY,28/09/2016,Higher Crime,LEGAL AID FUND,IAN J SPEED,1066289:145366663,"37,070.59",Legal Aid Payment Higher Crime
MINISTRY OF JUSTICE,LEGAL AID AGENCY,28/09/2016,Legal Help,LEGAL AID FUND,IMMIGRATION ADVICE SERVICE,1065573:145385492,"25,538.00",Legal Aid Payment Legal Help
MINISTRY OF JUSTICE,LEGAL AID AGENCY,28/09/2016,Legal Help,LEGAL AID FUND,IMMIGRATION ADVICE SERVICE,1065572:145385491,"27,925.00",Legal Aid Payment Legal Help
MINISTRY OF JUSTICE,LEGAL AID AGENCY,28/09/2016,Lower Crime,LEGAL AID FUND,INSTALAW,1065331:145387147,"25,219.00",Legal Aid Payment Lower Crime
MINISTRY OF JUSTICE,LEGAL AID AGENCY,28/09/2016,Higher Crime,LEGAL AID FUND,IRVINE THANVI NATAS SOLICITORS,1067155:145356423,"28,654.24",Legal Aid Payment Higher Crime
MINISTRY OF JUSTICE,LEGAL AID AGENCY,28/09/2016,Lower Crime,LEGAL AID FUND,IRVINE THANVI NATAS SOLICITORS,1067155:145385762,"50,000.00",Legal Aid Payment Lower Crime
MINISTRY OF JUSTICE,LEGAL AID AGENCY,28/09/2016,Lower Crime,LEGAL AID FUND,ISON HARRISON LTD,1064502:145385945,"26,200.00",Legal Aid Payment Lower Crime
MINISTRY OF JUSTICE,LEGAL AID AGENCY,28/09/2016,Lower Crime,LEGAL AID FUND,J D SOLICITORS,1064433:145386837,"36,992.00",Legal Aid Payment Lower Crime
MINISTRY OF JUSTICE,LEGAL AID AGENCY,28/09/2016,Lower Crime,LEGAL AID FUND,J D SOLICITORS,1064201:145386902,"64,762.00",Legal Aid Payment Lower Crime
MINISTRY OF JUSTICE,LEGAL AID AGENCY,28/09/2016,Lower Crime,LEGAL AID FUND,J D SPICER ZEB,1065136:145386410,"105,107.00",Legal Aid Payment Lower Crime
MINISTRY OF JUSTICE,LEGAL AID AGENCY,28/09/2016,Civil Representation,LEGAL AID FUND,JACKSON QUINN,1064461:145340871,"26,723.99",Legal Aid Payment Civil Representation
MINISTRY OF JUSTICE,LEGAL AID AGENCY,28/09/2016,Civil Representation,LEGAL AID FUND,JACKSON QUINN,1064460:3000000390720028,"53,780.84",Legal Aid Payment Civil Representation
MINISTRY OF JUSTICE,LEGAL AID AGENCY,28/09/2016,Higher Crime,LEGAL AID FUND,JAMES M MULHOLLAND QC,1063390:145394519,"60,000.00",Legal Aid Payment Higher Crime
MINISTRY OF JUSTICE,LEGAL AID AGENCY,28/09/2016,Lower Crime,LEGAL AID FUND,JAMES MURRAY SOLICITORS,1064728:145386491,"25,909.00",Legal Aid Payment Lower Crime
MINISTRY OF JUSTICE,LEGAL AID AGENCY,28/09/2016,Higher Crime,LEGAL AID FUND,JAMES T N SCOBIE QC,1065637:145388544,"71,438.75",Legal Aid Payment Higher Crime
MINISTRY OF JUSTICE,LEGAL AID AGENCY,28/09/2016,Higher Crime,LEGAL AID FUND,JEMMA LEVINSON,1066221:145357168,"38,891.62",Legal Aid Payment Higher Crime
MINISTRY OF JUSTICE,LEGAL AID AGENCY,28/09/2016,Lower Crime,LEGAL AID FUND,JERMAN SAMUELS & PEARSON LLP,1064592:145385725,"35,000.00",Legal Aid Payment Lower Crime
MINISTRY OF JUSTICE,LEGAL AID AGENCY,28/09/2016,Lower Crime,LEGAL AID FUND,JERMAN SAMUELS & PEARSON LLP,1064591:145385726,"37,600.00",Legal Aid Payment Lower Crime
MINISTRY OF JUSTICE,LEGAL AID AGENCY,28/09/2016,Legal Help,LEGAL AID FUND,JESSE DOUGLAS & AASKELLS SOLICITORS,1067912:145384999,"55,439.00",Legal Aid Payment Legal Help
MINISTRY OF JUSTICE,LEGAL AID AGENCY,28/09/2016,Civil Representation,LEGAL AID FUND,JI SOLICITORS LTD,1067531:145361385,"33,510.40",Legal Aid Payment Civil Representation
MINISTRY OF JUSTICE,LEGAL AID AGENCY,28/09/2016,Lower Crime,LEGAL AID FUND,JNP LEGAL LTD,1067702:145385668,"25,400.00",Legal Aid Payment Lower Crime
MINISTRY OF JUSTICE,LEGAL AID AGENCY,28/09/2016,Higher Crime,LEGAL AID FUND,JOHN A BUTTERFIELD,1066315:145366347,"32,175.82",Legal Aid Payment Higher Crime
MINISTRY OF JUSTICE,LEGAL AID AGENCY,28/09/2016,Lower Crime,LEGAL AID FUND,JOHN DELANEY & CO SOLICITORS,1064504:145385944,"30,000.00",Legal Aid Payment Lower Crime
MINISTRY OF JUSTICE,LEGAL AID AGENCY,28/09/2016,Higher Crime,LEGAL AID FUND,JOHN FOSTER HARRISON,1063473:145388290,"26,733.24",Legal Aid Payment Higher Crime
MINISTRY OF JUSTICE,LEGAL AID AGENCY,28/09/2016,Lower Crime,LEGAL AID FUND,JOHN FULLER & PARTNERS,1064317:145386327,"26,657.00",Legal Aid Payment Lower Crime
MINISTRY OF JUSTICE,LEGAL AID AGENCY,28/09/2016,Lower Crime,LEGAL AID FUND,JOHN ONIONS SOLICITORS,1065083:145386794,"37,613.00",Legal Aid Payment Lower Crime
MINISTRY OF JUSTICE,LEGAL AID AGENCY,28/09/2016,Higher Crime,LEGAL AID FUND,JOHN T BENSON QC,1063345:145357150,"75,283.55",Legal Aid Payment Higher Crime
MINISTRY OF JUSTICE,LEGAL AID AGENCY,28/09/2016,Lower Crime,LEGAL AID FUND,JONAS ROY BLOOM,1067056:145386135,"34,900.00",Legal Aid Payment Lower Crime
MINISTRY OF JUSTICE,LEGAL AID AGENCY,28/09/2016,Higher Crime,LEGAL AID FUND,JOSE OLIVARES-CHANDLER,1063409:145337728,"26,154.62",Legal Aid Payment Higher Crime
MINISTRY OF JUSTICE,LEGAL AID AGENCY,28/09/2016,Lower Crime,LEGAL AID FUND,JOSEPH HILL & CO,1064843:145386412,"39,972.00",Legal Aid Payment Lower Crime
MINISTRY OF JUSTICE,LEGAL AID AGENCY,28/09/2016,Lower Crime,LEGAL AID FUND,JSP LAW LTD,1064236:145386971,"56,847.00",Legal Aid Payment Lower Crime
MINISTRY OF JUSTICE,LEGAL AID AGENCY,28/09/2016,Higher Crime,LEGAL AID FUND,K LEGAL SOLICITORS,1066739:145388470,"26,820.01",Legal Aid Payment Higher Crime
MINISTRY OF JUSTICE,LEGAL AID AGENCY,28/09/2016,Lower Crime,LEGAL AID FUND,K LEGAL SOLICITORS,1066739:145386997,"34,976.00",Legal Aid Payment Lower Crime
MINISTRY OF JUSTICE,LEGAL AID AGENCY,28/09/2016,Higher Crime,LEGAL AID FUND,KAIM TODNER SOLICITORS LIMITED,1065253:145337952,"31,132.16",Legal Aid Payment Higher Crime
MINISTRY OF JUSTICE,LEGAL AID AGENCY,28/09/2016,Lower Crime,LEGAL AID FUND,KAIM TODNER SOLICITORS LIMITED,1065253:145386394,"39,347.00",Legal Aid Payment Lower Crime
MINISTRY OF JUSTICE,LEGAL AID AGENCY,28/09/2016,Lower Crime,LEGAL AID FUND,KAIM TODNER SOLICITORS LIMITED,1065252:145386395,"39,751.00",Legal Aid Payment Lower Crime
MINISTRY OF JUSTICE,LEGAL AID AGENCY,28/09/2016,Higher Crime,LEGAL AID FUND,KANGS SOLICITORS,1067679:145388297,"95,707.01",Legal Aid Payment Higher Crime
MINISTRY OF JUSTICE,LEGAL AID AGENCY,28/09/2016,Lower Crime,LEGAL AID FUND,KEANEY WHITEHEAD PARTNERSHIP,1064299:145395913,"26,291.00",Legal Aid Payment Lower Crime
MINISTRY OF JUSTICE,LEGAL AID AGENCY,28/09/2016,Higher Crime,LEGAL AID FUND,KEANEY WHITEHEAD PARTNERSHIP,1064299:145366541,"64,685.34",Legal Aid Payment Higher Crime
MINISTRY OF JUSTICE,LEGAL AID AGENCY,28/09/2016,Lower Crime,LEGAL AID FUND,KEMPS,1065004:145386609,"25,745.00",Legal Aid Payment Lower Crime
MINISTRY OF JUSTICE,LEGAL AID AGENCY,28/09/2016,Higher Crime,LEGAL AID FUND,KENNETH M BARROW & CO,1064953:145366824,"97,258.75",Legal Aid Payment Higher Crime
MINISTRY OF JUSTICE,LEGAL AID AGENCY,28/09/2016,Lower Crime,LEGAL AID FUND,KENT DEFENCE,1066841:145386165,"27,000.00",Legal Aid Payment Lower Crime
MINISTRY OF JUSTICE,LEGAL AID AGENCY,28/09/2016,Lower Crime,LEGAL AID FUND,KESAR & CO SOLICITORS,1066732:145386999,"27,641.00",Legal Aid Payment Lower Crime
MINISTRY OF JUSTICE,LEGAL AID AGENCY,28/09/2016,Civil Representation,LEGAL AID FUND,KHF SOLICITORS LTD,1066814:145334455,"25,285.66",Legal Aid Payment Civil Representation
MINISTRY OF JUSTICE,LEGAL AID AGENCY,28/09/2016,Higher Crime,LEGAL AID FUND,L P EVANS SOLICITORS,1066874:145357403,"39,885.88",Legal Aid Payment Higher Crime
MINISTRY OF JUSTICE,LEGAL AID AGENCY,28/09/2016,Higher Crime,LEGAL AID FUND,LAM & MEERABUX SOLICITORS,1064209:145366765,"69,286.86",Legal Aid Payment Higher Crime
MINISTRY OF JUSTICE,LEGAL AID AGENCY,28/09/2016,Lower Crime,LEGAL AID FUND,LANSBURY WORTHINGTON,1064989:145385748,"54,900.00",Legal Aid Payment Lower Crime
MINISTRY OF JUSTICE,LEGAL AID AGENCY,28/09/2016,Legal Help,LEGAL AID FUND,LAWANA & CO,1064325:145384543,"79,000.00",Legal Aid Payment Legal Help
MINISTRY OF JUSTICE,LEGAL AID AGENCY,28/09/2016,Lower Crime,LEGAL AID FUND,LAWRENCE & CO,1064844:145385826,"35,000.00",Legal Aid Payment Lower Crime
MINISTRY OF JUSTICE,LEGAL AID AGENCY,28/09/2016,Legal Help,LEGAL AID FUND,LAWRENCE LUPIN SOLICITORS LTD,1067263:145378808,"112,510.00",Legal Aid Payment Legal Help
MINISTRY OF JUSTICE,LEGAL AID AGENCY,28/09/2016,Lower Crime,LEGAL AID FUND,LAWTONS SOLICITORS LTD,1067006:145385715,"25,000.00",Legal Aid Payment Lower Crime
MINISTRY OF JUSTICE,LEGAL AID AGENCY,28/09/2016,Lower Crime,LEGAL AID FUND,LAWTONS SOLICITORS LTD,1064211:145386178,"85,000.00",Legal Aid Payment Lower Crime
MINISTRY OF JUSTICE,LEGAL AID AGENCY,28/09/2016,Legal Help,LEGAL AID FUND,LEI DAT BAIG SOLICITORS LIMITED,1064103:145385334,"42,087.00",Legal Aid Payment Legal Help
MINISTRY OF JUSTICE,LEGAL AID AGENCY,28/09/2016,Legal Help,LEGAL AID FUND,LEONARD CANNINGS SOLICITORS LLP,1067161:145385159,"28,996.00",Legal Aid Payment Legal Help
MINISTRY OF JUSTICE,LEGAL AID AGENCY,28/09/2016,Lower Crime,LEGAL AID FUND,LESLIE FRANKS SOLICITORS,1066963:145386451,"84,754.00",Legal Aid Payment Lower Crime
MINISTRY OF JUSTICE,LEGAL AID AGENCY,28/09/2016,Legal Help,LEGAL AID FUND,LESTER MORRILL INC DAVIES GORE LOMAX,1064855:145384949,"32,652.00",Legal Aid Payment Legal Help
MINISTRY OF JUSTICE,LEGAL AID AGENCY,28/09/2016,Lower Crime,LEGAL AID FUND,LEVY & CO SOLICITORS LLP,1064321:145385727,"42,100.00",Legal Aid Payment Lower Crime
MINISTRY OF JUSTICE,LEGAL AID AGENCY,28/09/2016,Lower Crime,LEGAL AID FUND,LEWIS NEDAS & CO,1067756:145385814,"35,800.00",Legal Aid Payment Lower Crime
MINISTRY OF JUSTICE,LEGAL AID AGENCY,28/09/2016,Higher Crime,LEGAL AID FUND,LIBERTY LAW SOLICITORS LTD,1066916:145348255,"42,845.24",Legal Aid Payment Higher Crime
MINISTRY OF JUSTICE,LEGAL AID AGENCY,28/09/2016,Legal Help,LEGAL AID FUND,LISA MARIE MCNULTY SOLICITOR,1064659:145385069,"28,274.00",Legal Aid Payment Legal Help
MINISTRY OF JUSTICE,LEGAL AID AGENCY,28/09/2016,Lower Crime,LEGAL AID FUND,LLM SOLICITORS (LONDON) LTD,1064208:145386985,"34,631.00",Legal Aid Payment Lower Crime
MINISTRY OF JUSTICE,LEGAL AID AGENCY,28/09/2016,Lower Crime,LEGAL AID FUND,LLOYD & ROWE,1067773:145385659,"30,600.00",Legal Aid Payment Lower Crime
MINISTRY OF JUSTICE,LEGAL AID AGENCY,28/09/2016,Lower Crime,LEGAL AID FUND,LLOYDS PR SOLICITORS,1064275:145386329,"33,041.00",Legal Aid Payment Lower Crime
MINISTRY OF JUSTICE,LEGAL AID AGENCY,28/09/2016,Lower Crime,LEGAL AID FUND,LUMB & MACGILL,1064477:145385930,"35,000.00",Legal Aid Payment Lower Crime
MINISTRY OF JUSTICE,LEGAL AID AGENCY,28/09/2016,Legal Help,LEGAL AID FUND,LUQMANI THOMPSON & PARTNERS,1064559:145384970,"53,985.00",Legal Aid Payment Legal Help
MINISTRY OF JUSTICE,LEGAL AID AGENCY,28/09/2016,Lower Crime,LEGAL AID FUND,M B LAW LTD,1066918:145386406,"27,437.00",Legal Aid Payment Lower Crime
MINISTRY OF JUSTICE,LEGAL AID AGENCY,28/09/2016,Higher Crime,LEGAL AID FUND,M B LAW LTD,1066918:145366684,"71,537.49",Legal Aid Payment Higher Crime
MINISTRY OF JUSTICE,LEGAL AID AGENCY,28/09/2016,Legal Help,LEGAL AID FUND,M H LEGAL,1067029:145385130,"35,816.00",Legal Aid Payment Legal Help
MINISTRY OF JUSTICE,LEGAL AID AGENCY,28/09/2016,Lower Crime,LEGAL AID FUND,M K LAW SOLICITORS LTD,1064254:145386939,"73,367.00",Legal Aid Payment Lower Crime
MINISTRY OF JUSTICE,LEGAL AID AGENCY,28/09/2016,Higher Crime,LEGAL AID FUND,MACKENZIE & CO,1065264:145388527,"53,676.32",Legal Aid Payment Higher Crime
MINISTRY OF JUSTICE,LEGAL AID AGENCY,28/09/2016,Higher Crime,LEGAL AID FUND,MANDLA BHOMRA & CO,1067619:145338496,"45,027.43",Legal Aid Payment Higher Crime
MINISTRY OF JUSTICE,LEGAL AID AGENCY,28/09/2016,Lower Crime,LEGAL AID FUND,MANN & CO SOLICITORS,1067178:145386120,"27,600.00",Legal Aid Payment Lower Crime
MINISTRY OF JUSTICE,LEGAL AID AGENCY,28/09/2016,Higher Crime,LEGAL AID FUND,MARK C WYETH QC,1063698:145394418,"60,000.00",Legal Aid Payment Higher Crime
MINISTRY OF JUSTICE,LEGAL AID AGENCY,28/09/2016,Lower Crime,LEGAL AID FUND,MARTIN MURRAY & ASSOCIATES,1067927:145386723,"44,611.00",Legal Aid Payment Lower Crime
MINISTRY OF JUSTICE,LEGAL AID AGENCY,28/09/2016,Lower Crime,LEGAL AID FUND,MARTIN MURRAY & ASSOCIATES,1067928:145386404,"64,956.00",Legal Aid Payment Lower Crime
MINISTRY OF JUSTICE,LEGAL AID AGENCY,28/09/2016,Lower Crime,LEGAL AID FUND,MARTYN HEWETT,1067857:145386028,"33,900.00",Legal Aid Payment Lower Crime
MINISTRY OF JUSTICE,LEGAL AID AGENCY,28/09/2016,Higher Crime,LEGAL AID FUND,MATTHEW C LAWSON,1063559:145394393,"30,920.04",Legal Aid Payment Higher Crime
MINISTRY OF JUSTICE,LEGAL AID AGENCY,28/09/2016,Civil Representation,LEGAL AID FUND,MATWALA VYAS LLP,1067202:145082561,"29,521.01",Legal Aid Payment Civil Representation
MINISTRY OF JUSTICE,LEGAL AID AGENCY,28/09/2016,Lower Crime,LEGAL AID FUND,MCGANNS LAW LTD,1067079:145386301,"78,512.00",Legal Aid Payment Lower Crime
MINISTRY OF JUSTICE,LEGAL AID AGENCY,28/09/2016,Lower Crime,LEGAL AID FUND,MCGRATH & CO SOLICITORS,1067058:145386134,"30,000.00",Legal Aid Payment Lower Crime
MINISTRY OF JUSTICE,LEGAL AID AGENCY,28/09/2016,Lower Crime,LEGAL AID FUND,MCKENZIES SOLICITORS,1064470:145386325,"26,310.00",Legal Aid Payment Lower Crime
MINISTRY OF JUSTICE,LEGAL AID AGENCY,28/09/2016,Lower Crime,LEGAL AID FUND,MCMILLAN WILLIAMS SOLICITORS LTD,1067675:145385784,"62,200.00",Legal Aid Payment Lower Crime
MINISTRY OF JUSTICE,LEGAL AID AGENCY,28/09/2016,Lower Crime,LEGAL AID FUND,MCSORLEY LEWIS LAW LTD,1067826:145386249,"31,554.00",Legal Aid Payment Lower Crime
MINISTRY OF JUSTICE,LEGAL AID AGENCY,28/09/2016,Civil Representation,LEGAL AID FUND,MEDIATION NOW,1066860:145387198,"34,900.00",Legal Aid Payment Civil Representation
MINISTRY OF JUSTICE,LEGAL AID AGENCY,28/09/2016,Higher Crime,LEGAL AID FUND,MIAN & CO,1067349:145338623,"60,664.78",Legal Aid Payment Higher Crime
MINISTRY OF JUSTICE,LEGAL AID AGENCY,28/09/2016,Higher Crime,LEGAL AID FUND,MICHAEL A HICK,1063784:145396492,"77,350.16",Legal Aid Payment Higher Crime
MINISTRY OF JUSTICE,LEGAL AID AGENCY,28/09/2016,Higher Crime,LEGAL AID FUND,MICHAEL C DUCK QC,1063780:145394390,"60,210.00",Legal Aid Payment Higher Crime
MINISTRY OF JUSTICE,LEGAL AID AGENCY,28/09/2016,Civil Representation,LEGAL AID FUND,MICHAEL D COLLARD,1067961:145343113,"-25,215.00",Legal Aid Payment Civil Representation
MINISTRY OF JUSTICE,LEGAL AID AGENCY,28/09/2016,Civil Representation,LEGAL AID FUND,MICHAEL D COLLARD,1067961:145297778,"-25,345.57",Legal Aid Payment Civil Representation
MINISTRY OF JUSTICE,LEGAL AID AGENCY,28/09/2016,Lower Crime,LEGAL AID FUND,MICHAEL PURDON,1064947:145386525,"27,497.00",Legal Aid Payment Lower Crime
MINISTRY OF JUSTICE,LEGAL AID AGENCY,28/09/2016,Legal Help,LEGAL AID FUND,MIGRANT LEGAL PROJECT,1065506:145385519,"36,849.00",Legal Aid Payment Legal Help
MINISTRY OF JUSTICE,LEGAL AID AGENCY,28/09/2016,Civil Representation,LEGAL AID FUND,MILES & PARTNERS LLP,1067484:3000000984860030,"25,311.97",Legal Aid Payment Civil Representation
MINISTRY OF JUSTICE,LEGAL AID AGENCY,28/09/2016,Lower Crime,LEGAL AID FUND,MORGAN CULLEN & BALL LTD,1065850:145387051,"30,505.00",Legal Aid Payment Lower Crime
MINISTRY OF JUSTICE,LEGAL AID AGENCY,28/09/2016,Lower Crime,LEGAL AID FUND,MPR SOLICITORS LLP,1067321:145385837,"37,900.00",Legal Aid Payment Lower Crime
MINISTRY OF JUSTICE,LEGAL AID AGENCY,28/09/2016,Higher Crime,LEGAL AID FUND,MPR SOLICITORS LLP,1067321:145338822,"71,545.90",Legal Aid Payment Higher Crime
MINISTRY OF JUSTICE,LEGAL AID AGENCY,28/09/2016,Legal Help,LEGAL AID FUND,MTG SOLICITORS,1064527:145384556,"32,000.00",Legal Aid Payment Legal Help
MINISTRY OF JUSTICE,LEGAL AID AGENCY,28/09/2016,Lower Crime,LEGAL AID FUND,MURRAY BRANKIN,1063164:145386184,"25,000.00",Legal Aid Payment Lower Crime
MINISTRY OF JUSTICE,LEGAL AID AGENCY,28/09/2016,Lower Crime,LEGAL AID FUND,MURRAYS PARTNERSHIP,1067632:145386464,"26,047.00",Legal Aid Payment Lower Crime
MINISTRY OF JUSTICE,LEGAL AID AGENCY,28/09/2016,Higher Crime,LEGAL AID FUND,MURRIA SOLICITORS LTD,1064544:145388217,"54,533.18",Legal Aid Payment Higher Crime
MINISTRY OF JUSTICE,LEGAL AID AGENCY,28/09/2016,Lower Crime,LEGAL AID FUND,MUSTOE SHORTER SOLICITORS & ADVOCATES,1064669:145386781,"27,048.00",Legal Aid Payment Lower Crime
MINISTRY OF JUSTICE,LEGAL AID AGENCY,28/09/2016,Lower Crime,LEGAL AID FUND,NEEDHAM POULIER LTD,1064557:145386477,"32,435.00",Legal Aid Payment Lower Crime
MINISTRY OF JUSTICE,LEGAL AID AGENCY,28/09/2016,Lower Crime,LEGAL AID FUND,NELSON GUEST & PARTNERS,1067850:145385791,"26,900.00",Legal Aid Payment Lower Crime
MINISTRY OF JUSTICE,LEGAL AID AGENCY,28/09/2016,Higher Crime,LEGAL AID FUND,NEUMANS LLP,1067077:145338553,"36,428.72",Legal Aid Payment Higher Crime
MINISTRY OF JUSTICE,LEGAL AID AGENCY,28/09/2016,Civil Representation,LEGAL AID FUND,NICHOLAS A J GOODWIN,1066251:145343457,"54,885.60",Legal Aid Payment Civil Representation
MINISTRY OF JUSTICE,LEGAL AID AGENCY,28/09/2016,Civil Representation,LEGAL AID FUND,NICHOLAS A J GOODWIN,1066251:144889484,"-55,308.37",Legal Aid Payment Civil Representation
MINISTRY OF JUSTICE,LEGAL AID AGENCY,28/09/2016,Legal Help,LEGAL AID FUND,NOBLE SOLICITORS,1064716:145385190,"27,528.00",Legal Aid Payment Legal Help
MINISTRY OF JUSTICE,LEGAL AID AGENCY,28/09/2016,Lower Crime,LEGAL AID FUND,NOBLE SOLICITORS,1064257:145386878,"29,509.00",Legal Aid Payment Lower Crime
MINISTRY OF JUSTICE,LEGAL AID AGENCY,28/09/2016,Lower Crime,LEGAL AID FUND,NOBLE SOLICITORS,1064716:145386332,"38,013.00",Legal Aid Payment Lower Crime
MINISTRY OF JUSTICE,LEGAL AID AGENCY,28/09/2016,Higher Crime,LEGAL AID FUND,NOBLE SOLICITORS,1064716:145394423,"47,046.87",Legal Aid Payment Higher Crime
MINISTRY OF JUSTICE,LEGAL AID AGENCY,28/09/2016,Lower Crime,LEGAL AID FUND,NOBLE SOLICITORS,1064350:145386335,"52,928.00",Legal Aid Payment Lower Crime
MINISTRY OF JUSTICE,LEGAL AID AGENCY,28/09/2016,Lower Crime,LEGAL AID FUND,NUMBER ONE LAW LLP,1066852:145386852,"34,428.00",Legal Aid Payment Lower Crime
MINISTRY OF JUSTICE,LEGAL AID AGENCY,28/09/2016,Lower Crime,LEGAL AID FUND,OBW PERERA LTD,1067045:145385737,"29,000.00",Legal Aid Payment Lower Crime
MINISTRY OF JUSTICE,LEGAL AID AGENCY,28/09/2016,Legal Help,LEGAL AID FUND,O'DONNELLS SOLICITORS,1064619:145385068,"25,802.00",Legal Aid Payment Legal Help
MINISTRY OF JUSTICE,LEGAL AID AGENCY,28/09/2016,Lower Crime,LEGAL AID FUND,O'GARRA'S SOLICITORS,1067190:145385946,"28,000.00",Legal Aid Payment Lower Crime
MINISTRY OF JUSTICE,LEGAL AID AGENCY,28/09/2016,Lower Crime,LEGAL AID FUND,OLIVER D'SA SOLICITORS,1067618:145386289,"33,537.00",Legal Aid Payment Lower Crime
MINISTRY OF JUSTICE,LEGAL AID AGENCY,28/09/2016,Lower Crime,LEGAL AID FUND,"O'NEILL, WRIGHT & NASH",1064189:145386865,"39,590.00",Legal Aid Payment Lower Crime
MINISTRY OF JUSTICE,LEGAL AID AGENCY,28/09/2016,Lower Crime,LEGAL AID FUND,ORACLE SOLICITORS,1064595:145386460,"28,481.00",Legal Aid Payment Lower Crime
MINISTRY OF JUSTICE,LEGAL AID AGENCY,28/09/2016,Legal Help,LEGAL AID FUND,OSBORNES SOLICITORS LLP,1065269:145384547,"33,200.00",Legal Aid Payment Legal Help
MINISTRY OF JUSTICE,LEGAL AID AGENCY,28/09/2016,Lower Crime,LEGAL AID FUND,OSLERS SOLICITORS,1064346:145385732,"29,700.00",Legal Aid Payment Lower Crime
MINISTRY OF JUSTICE,LEGAL AID AGENCY,28/09/2016,Legal Help,LEGAL AID FUND,OTTEN PENNA LTD,1064652:145384595,"29,000.00",Legal Aid Payment Legal Help
MINISTRY OF JUSTICE,LEGAL AID AGENCY,28/09/2016,Lower Crime,LEGAL AID FUND,OWEN NASH & CO,1065120:145386146,"40,000.00",Legal Aid Payment Lower Crime
MINISTRY OF JUSTICE,LEGAL AID AGENCY,28/09/2016,Lower Crime,LEGAL AID FUND,PALMERS CRIMINAL DEFENCE SOLICITORS,1066960:145386029,"28,100.00",Legal Aid Payment Lower Crime
MINISTRY OF JUSTICE,LEGAL AID AGENCY,28/09/2016,Higher Crime,LEGAL AID FUND,PATRICK C HILL,1065846:145343661,"64,400.00",Legal Aid Payment Higher Crime
MINISTRY OF JUSTICE,LEGAL AID AGENCY,28/09/2016,Higher Crime,LEGAL AID FUND,PAUL MARTIN & CO,1064633:145357084,"43,410.91",Legal Aid Payment Higher Crime
MINISTRY OF JUSTICE,LEGAL AID AGENCY,28/09/2016,Legal Help,LEGAL AID FUND,PETER EDWARDS LAW LTD,1064612:145384538,"59,200.00",Legal Aid Payment Legal Help
MINISTRY OF JUSTICE,LEGAL AID AGENCY,28/09/2016,Lower Crime,LEGAL AID FUND,PETHERBRIDGE BASSRA SOLICITORS LTD,1064479:145386564,"38,162.00",Legal Aid Payment Lower Crime
MINISTRY OF JUSTICE,LEGAL AID AGENCY,28/09/2016,Lower Crime,LEGAL AID FUND,POOLE ALCOCK LLP,1064820:145386623,"27,034.00",Legal Aid Payment Lower Crime
MINISTRY OF JUSTICE,LEGAL AID AGENCY,28/09/2016,Lower Crime,LEGAL AID FUND,POWELL SPENCER AND PARTNERS,1065137:145385763,"42,600.00",Legal Aid Payment Lower Crime
MINISTRY OF JUSTICE,LEGAL AID AGENCY,28/09/2016,Lower Crime,LEGAL AID FUND,PURCELL PARKER LTD,1067347:145386136,"85,000.00",Legal Aid Payment Lower Crime
MINISTRY OF JUSTICE,LEGAL AID AGENCY,28/09/2016,Legal Help,LEGAL AID FUND,QS JACKSON CANTER LTD,1065795:145385568,"46,207.00",Legal Aid Payment Legal Help
MINISTRY OF JUSTICE,LEGAL AID AGENCY,28/09/2016,Lower Crime,LEGAL AID FUND,QS JACKSON CANTER LTD,1065795:145387053,"48,724.00",Legal Aid Payment Lower Crime
MINISTRY OF JUSTICE,LEGAL AID AGENCY,28/09/2016,Legal Help,LEGAL AID FUND,QUALITY SOLICITORS CMHT,1065201:145384739,"76,330.00",Legal Aid Payment Legal Help
MINISTRY OF JUSTICE,LEGAL AID AGENCY,28/09/2016,Lower Crime,LEGAL AID FUND,QUALITYSOLICITORS HPJV,1067701:145386226,"26,550.00",Legal Aid Payment Lower Crime
MINISTRY OF JUSTICE,LEGAL AID AGENCY,28/09/2016,Lower Crime,LEGAL AID FUND,QUALITYSOLICITORS JONES ROBERTSON,1064569:145386592,"27,708.00",Legal Aid Payment Lower Crime
MINISTRY OF JUSTICE,LEGAL AID AGENCY,28/09/2016,Civil Representation,LEGAL AID FUND,RAMSDENS SOLICITORS LLP,1063260:145377857,"54,927.96",Legal Aid Payment Civil Representation
MINISTRY OF JUSTICE,LEGAL AID AGENCY,28/09/2016,Lower Crime,LEGAL AID FUND,REEDS SOLICITORS LTD,1065418:145387090,"26,541.00",Legal Aid Payment Lower Crime
MINISTRY OF JUSTICE,LEGAL AID AGENCY,28/09/2016,Lower Crime,LEGAL AID FUND,REEDS SOLICITORS LTD,1062954:145387089,"26,542.00",Legal Aid Payment Lower Crime
MINISTRY OF JUSTICE,LEGAL AID AGENCY,28/09/2016,Lower Crime,LEGAL AID FUND,REEDS SOLICITORS LTD,1062706:145387164,"31,637.00",Legal Aid Payment Lower Crime
MINISTRY OF JUSTICE,LEGAL AID AGENCY,28/09/2016,Lower Crime,LEGAL AID FUND,REEDS SOLICITORS LTD,1064195:145386896,"38,802.00",Legal Aid Payment Lower Crime
MINISTRY OF JUSTICE,LEGAL AID AGENCY,28/09/2016,Lower Crime,LEGAL AID FUND,REEDS SOLICITORS LTD,1067353:145386733,"49,806.00",Legal Aid Payment Lower Crime
MINISTRY OF JUSTICE,LEGAL AID AGENCY,28/09/2016,Lower Crime,LEGAL AID FUND,REEDS SOLICITORS LTD,1065827:145387052,"54,662.00",Legal Aid Payment Lower Crime
MINISTRY OF JUSTICE,LEGAL AID AGENCY,28/09/2016,Lower Crime,LEGAL AID FUND,REEVES  & CO SOLICITORS,1064298:145386684,"41,537.00",Legal Aid Payment Lower Crime
MINISTRY OF JUSTICE,LEGAL AID AGENCY,28/09/2016,Lower Crime,LEGAL AID FUND,RENSHAW DERRICK & CO,1067823:145386743,"31,350.00",Legal Aid Payment Lower Crime
MINISTRY OF JUSTICE,LEGAL AID AGENCY,28/09/2016,Higher Crime,LEGAL AID FUND,RHODRI W M JAMES,1064071:145394521,"30,120.00",Legal Aid Payment Higher Crime
MINISTRY OF JUSTICE,LEGAL AID AGENCY,28/09/2016,Lower Crime,LEGAL AID FUND,RICHARD BODY & CO,1064607:145386027,"31,400.00",Legal Aid Payment Lower Crime
MINISTRY OF JUSTICE,LEGAL AID AGENCY,28/09/2016,Lower Crime,LEGAL AID FUND,RICHARD HASWELL SOLICITORS LLP,1064987:145386523,"26,575.00",Legal Aid Payment Lower Crime
MINISTRY OF JUSTICE,LEGAL AID AGENCY,28/09/2016,Lower Crime,LEGAL AID FUND,RICHARDSON SOLICITORS,1064671:145386040,"27,700.00",Legal Aid Payment Lower Crime
MINISTRY OF JUSTICE,LEGAL AID AGENCY,28/09/2016,Higher Crime,LEGAL AID FUND,RILEY HAYES & CO,1067348:145365786,"32,326.06",Legal Aid Payment Higher Crime
MINISTRY OF JUSTICE,LEGAL AID AGENCY,28/09/2016,Lower Crime,LEGAL AID FUND,RILEY HAYES & CO,1067348:145386162,"47,000.00",Legal Aid Payment Lower Crime
MINISTRY OF JUSTICE,LEGAL AID AGENCY,28/09/2016,Lower Crime,LEGAL AID FUND,RMNJ SOLICITORS ***,1067332:145386487,"31,884.00",Legal Aid Payment Lower Crime
MINISTRY OF JUSTICE,LEGAL AID AGENCY,28/09/2016,Legal Help,LEGAL AID FUND,RMNJ SOLICITORS ***,1067332:145384961,"68,384.00",Legal Aid Payment Legal Help
MINISTRY OF JUSTICE,LEGAL AID AGENCY,28/09/2016,Lower Crime,LEGAL AID FUND,ROACH PITTIS,1065243:145386058,"26,400.00",Legal Aid Payment Lower Crime
MINISTRY OF JUSTICE,LEGAL AID AGENCY,28/09/2016,Legal Help,LEGAL AID FUND,ROBERT LIZAR,1065103:145385369,"26,629.00",Legal Aid Payment Legal Help
MINISTRY OF JUSTICE,LEGAL AID AGENCY,28/09/2016,Lower Crime,LEGAL AID FUND,ROBERT LIZAR,1065103:145386011,"35,000.00",Legal Aid Payment Lower Crime
MINISTRY OF JUSTICE,LEGAL AID AGENCY,28/09/2016,Lower Crime,LEGAL AID FUND,ROBERTSON'S SOLICITORS,1067387:145385924,"25,900.00",Legal Aid Payment Lower Crime
MINISTRY OF JUSTICE,LEGAL AID AGENCY,28/09/2016,Lower Crime,LEGAL AID FUND,RODNEY WARREN & CO LTD,1067782:145386023,"41,800.00",Legal Aid Payment Lower Crime
MINISTRY OF JUSTICE,LEGAL AID AGENCY,28/09/2016,Legal Help,LEGAL AID FUND,ROEBUCKS SOLICITORS,1067647:145385073,"27,345.00",Legal Aid Payment Legal Help
MINISTRY OF JUSTICE,LEGAL AID AGENCY,28/09/2016,Lower Crime,LEGAL AID FUND,ROGERS & CO,1065178:145386110,"28,100.00",Legal Aid Payment Lower Crime
MINISTRY OF JUSTICE,LEGAL AID AGENCY,28/09/2016,Lower Crime,LEGAL AID FUND,ROWE SPARKES SOLICITORS LTD,1064402:145386051,"26,000.00",Legal Aid Payment Lower Crime
MINISTRY OF JUSTICE,LEGAL AID AGENCY,28/09/2016,Lower Crime,LEGAL AID FUND,RUSSELL & RUSSELL SOLICITORS,1067567:145386857,"28,219.00",Legal Aid Payment Lower Crime
MINISTRY OF JUSTICE,LEGAL AID AGENCY,28/09/2016,Lower Crime,LEGAL AID FUND,RUSSELL & RUSSELL SOLICITORS,1067569:145386595,"31,439.00",Legal Aid Payment Lower Crime
MINISTRY OF JUSTICE,LEGAL AID AGENCY,28/09/2016,Higher Crime,LEGAL AID FUND,RUSTEM GUARDIAN SOLICITORS,1067069:145357411,"56,407.75",Legal Aid Payment Higher Crime
MINISTRY OF JUSTICE,LEGAL AID AGENCY,28/09/2016,Lower Crime,LEGAL AID FUND,S A LAW CHAMBERS SOLICITORS,1067107:145385756,"65,000.00",Legal Aid Payment Lower Crime
MINISTRY OF JUSTICE,LEGAL AID AGENCY,28/09/2016,Civil Representation,LEGAL AID FUND,SAMUEL ROSS SOLICITORS,1067242:145350054,"26,319.25",Legal Aid Payment Civil Representation
MINISTRY OF JUSTICE,LEGAL AID AGENCY,28/09/2016,Lower Crime,LEGAL AID FUND,SANSBURY DOUGLAS,1066818:145386170,"50,000.00",Legal Aid Payment Lower Crime
MINISTRY OF JUSTICE,LEGAL AID AGENCY,28/09/2016,Lower Crime,LEGAL AID FUND,SAUNDERS SOLICITORS LTD,1067903:145385822,"25,700.00",Legal Aid Payment Lower Crime
MINISTRY OF JUSTICE,LEGAL AID AGENCY,28/09/2016,Legal Help,LEGAL AID FUND,SCOTT-MONCRIEFF & ASSOCIATES LLP,1067921:145384564,"90,300.00",Legal Aid Payment Legal Help
MINISTRY OF JUSTICE,LEGAL AID AGENCY,28/09/2016,Lower Crime,LEGAL AID FUND,SEDGWICK CHUDLEIGH MCKENN SOLICITORS,1066899:145386208,"26,960.00",Legal Aid Payment Lower Crime
MINISTRY OF JUSTICE,LEGAL AID AGENCY,28/09/2016,Higher Crime,LEGAL AID FUND,SHAH LAW CHAMBERS,1064286:145366572,"27,336.96",Legal Aid Payment Higher Crime
MINISTRY OF JUSTICE,LEGAL AID AGENCY,28/09/2016,Higher Crime,LEGAL AID FUND,SHAH LAW CHAMBERS,1064286:145366566,"89,975.11",Legal Aid Payment Higher Crime
MINISTRY OF JUSTICE,LEGAL AID AGENCY,28/09/2016,Lower Crime,LEGAL AID FUND,SHARMA LAW SOLICITORS,1066731:145381394,"25,941.00",Legal Aid Payment Lower Crime
MINISTRY OF JUSTICE,LEGAL AID AGENCY,28/09/2016,Lower Crime,LEGAL AID FUND,SHEPHERD SOLICITORS LTD,1064277:145386671,"28,906.00",Legal Aid Payment Lower Crime
MINISTRY OF JUSTICE,LEGAL AID AGENCY,28/09/2016,Lower Crime,LEGAL AID FUND,SMITH PARTNERSHIP,1064458:145386140,"28,700.00",Legal Aid Payment Lower Crime
MINISTRY OF JUSTICE,LEGAL AID AGENCY,28/09/2016,Lower Crime,LEGAL AID FUND,SMITH PARTNERSHIP,1064456:145385696,"33,300.00",Legal Aid Payment Lower Crime
MINISTRY OF JUSTICE,LEGAL AID AGENCY,28/09/2016,Lower Crime,LEGAL AID FUND,SMITH PARTNERSHIP,1064454:145385697,"45,400.00",Legal Aid Payment Lower Crime
MINISTRY OF JUSTICE,LEGAL AID AGENCY,28/09/2016,Lower Crime,LEGAL AID FUND,SONN MACMILLAN WALKER LTD,1067847:145385752,"81,100.00",Legal Aid Payment Lower Crime
MINISTRY OF JUSTICE,LEGAL AID AGENCY,28/09/2016,Legal Help,LEGAL AID FUND,SOUTHERNS,1064970:145385074,"25,576.00",Legal Aid Payment Legal Help
MINISTRY OF JUSTICE,LEGAL AID AGENCY,28/09/2016,Lower Crime,LEGAL AID FUND,STEPHEN BURDON SOLICITORS,1067264:145385690,"29,500.00",Legal Aid Payment Lower Crime
MINISTRY OF JUSTICE,LEGAL AID AGENCY,28/09/2016,Higher Crime,LEGAL AID FUND,STEPHEN MOORE,1067033:145366674,"52,160.75",Legal Aid Payment Higher Crime
MINISTRY OF JUSTICE,LEGAL AID AGENCY,28/09/2016,Lower Crime,LEGAL AID FUND,STEPHEN RIMMER LLP,1067358:145386026,"34,900.00",Legal Aid Payment Lower Crime
MINISTRY OF JUSTICE,LEGAL AID AGENCY,28/09/2016,Lower Crime,LEGAL AID FUND,STEPHENSONS SOLICITORS LLP,1065109:145386611,"40,000.00",Legal Aid Payment Lower Crime
MINISTRY OF JUSTICE,LEGAL AID AGENCY,28/09/2016,Lower Crime,LEGAL AID FUND,STERNBERG REED SOLICITORS,1064416:145385807,"55,000.00",Legal Aid Payment Lower Crime
MINISTRY OF JUSTICE,LEGAL AID AGENCY,28/09/2016,Lower Crime,LEGAL AID FUND,STEVEN YOUNG & CO INC ROWBIS,1067152:145386776,"33,037.00",Legal Aid Payment Lower Crime
MINISTRY OF JUSTICE,LEGAL AID AGENCY,28/09/2016,Lower Crime,LEGAL AID FUND,STEVENS SOLICITORS,1067591:145386123,"27,700.00",Legal Aid Payment Lower Crime
MINISTRY OF JUSTICE,LEGAL AID AGENCY,28/09/2016,Lower Crime,LEGAL AID FUND,STEVENS SOLICITORS,1067590:145386124,"39,700.00",Legal Aid Payment Lower Crime
MINISTRY OF JUSTICE,LEGAL AID AGENCY,28/09/2016,Higher Crime,LEGAL AID FUND,STOKOE PARTNERSHIP,1065257:145348334,"89,975.11",Legal Aid Payment Higher Crime
MINISTRY OF JUSTICE,LEGAL AID AGENCY,28/09/2016,Lower Crime,LEGAL AID FUND,STRINGFELLOW & CO,1064309:145385750,"25,000.00",Legal Aid Payment Lower Crime
MINISTRY OF JUSTICE,LEGAL AID AGENCY,28/09/2016,Lower Crime,LEGAL AID FUND,STUART MILLER SOLICITORS LTD,1064961:145386449,"107,742.00",Legal Aid Payment Lower Crime
MINISTRY OF JUSTICE,LEGAL AID AGENCY,28/09/2016,Civil Representation,LEGAL AID FUND,SUSAN C CAMPBELL QC,1066117:3000000491770027,"25,884.00",Legal Aid Payment Civil Representation
MINISTRY OF JUSTICE,LEGAL AID AGENCY,28/09/2016,Lower Crime,LEGAL AID FUND,SUSSEX DEFENCE SOLICITORS,1064339:145386043,"30,000.00",Legal Aid Payment Lower Crime
MINISTRY OF JUSTICE,LEGAL AID AGENCY,28/09/2016,Legal Help,LEGAL AID FUND,SUTOVIC & HARTIGAN,1065306:145384570,"34,300.00",Legal Aid Payment Legal Help
MINISTRY OF JUSTICE,LEGAL AID AGENCY,28/09/2016,Lower Crime,LEGAL AID FUND,SWAIN & CO SOLICITORS LLP,1067153:145386048,"38,300.00",Legal Aid Payment Lower Crime
MINISTRY OF JUSTICE,LEGAL AID AGENCY,28/09/2016,Legal Help,LEGAL AID FUND,SWAIN & CO SOLICITORS LLP,1067154:145384678,"40,000.00",Legal Aid Payment Legal Help
MINISTRY OF JUSTICE,LEGAL AID AGENCY,28/09/2016,Lower Crime,LEGAL AID FUND,SWITALSKI'S SOLICITORS LTD,1064886:145386534,"30,746.00",Legal Aid Payment Lower Crime
MINISTRY OF JUSTICE,LEGAL AID AGENCY,28/09/2016,Legal Help,LEGAL AID FUND,SWITALSKI'S SOLICITORS LTD,1064886:145384934,"57,049.00",Legal Aid Payment Legal Help
MINISTRY OF JUSTICE,LEGAL AID AGENCY,28/09/2016,Lower Crime,LEGAL AID FUND,T S LAW LTD,1063201:145386183,"25,000.00",Legal Aid Payment Lower Crime
MINISTRY OF JUSTICE,LEGAL AID AGENCY,28/09/2016,Lower Crime,LEGAL AID FUND,T S LAW LTD,1064663:145385808,"25,000.00",Legal Aid Payment Lower Crime
MINISTRY OF JUSTICE,LEGAL AID AGENCY,28/09/2016,Legal Help,LEGAL AID FUND,T V EDWARDS LLP,1064990:145384546,"29,700.00",Legal Aid Payment Legal Help
MINISTRY OF JUSTICE,LEGAL AID AGENCY,28/09/2016,Lower Crime,LEGAL AID FUND,T V EDWARDS LLP,1064990:145385806,"58,600.00",Legal Aid Payment Lower Crime
MINISTRY OF JUSTICE,LEGAL AID AGENCY,28/09/2016,Higher Crime,LEGAL AID FUND,TAHIR KHAN,1064076:145388768,"35,454.62",Legal Aid Payment Higher Crime
MINISTRY OF JUSTICE,LEGAL AID AGENCY,28/09/2016,Lower Crime,LEGAL AID FUND,TAYLOR STREET SOLICITORS LLP,1067486:145386031,"61,700.00",Legal Aid Payment Lower Crime
MINISTRY OF JUSTICE,LEGAL AID AGENCY,28/09/2016,Lower Crime,LEGAL AID FUND,TEESSIDE LAW LTD,1062940:145387083,"34,534.00",Legal Aid Payment Lower Crime
MINISTRY OF JUSTICE,LEGAL AID AGENCY,28/09/2016,Legal Help,LEGAL AID FUND,THALIWAL & CO LTD,1064486:145385129,"37,162.00",Legal Aid Payment Legal Help
MINISTRY OF JUSTICE,LEGAL AID AGENCY,28/09/2016,Lower Crime,LEGAL AID FUND,THE CASTLE PARTNERSHIP,1064815:145386033,"29,000.00",Legal Aid Payment Lower Crime
MINISTRY OF JUSTICE,LEGAL AID AGENCY,28/09/2016,Higher Crime,LEGAL AID FUND,THE CENTRAL LAW PRACTICE,1064245:145357620,"89,975.11",Legal Aid Payment Higher Crime
MINISTRY OF JUSTICE,LEGAL AID AGENCY,28/09/2016,Civil Representation,LEGAL AID FUND,THE COMMUNITY LAW PARTNERSHIP LTD,1067116:145287815,"33,684.43",Legal Aid Payment Civil Representation
MINISTRY OF JUSTICE,LEGAL AID AGENCY,28/09/2016,Lower Crime,LEGAL AID FUND,THE JOHNSON PARTNERSHIP,1064800:145385687,"34,000.00",Legal Aid Payment Lower Crime
MINISTRY OF JUSTICE,LEGAL AID AGENCY,28/09/2016,Lower Crime,LEGAL AID FUND,THE JOHNSON PARTNERSHIP,1064799:145385688,"38,200.00",Legal Aid Payment Lower Crime
MINISTRY OF JUSTICE,LEGAL AID AGENCY,28/09/2016,Lower Crime,LEGAL AID FUND,THE JOHNSON PARTNERSHIP,1066816:145386173,"40,000.00",Legal Aid Payment Lower Crime
MINISTRY OF JUSTICE,LEGAL AID AGENCY,28/09/2016,Lower Crime,LEGAL AID FUND,THE JOHNSON PARTNERSHIP,1064801:145385686,"190,000.00",Legal Aid Payment Lower Crime
MINISTRY OF JUSTICE,LEGAL AID AGENCY,28/09/2016,Lower Crime,LEGAL AID FUND,THOMAS BOYD WHYTE,1065278:145386409,"51,149.00",Legal Aid Payment Lower Crime
MINISTRY OF JUSTICE,LEGAL AID AGENCY,28/09/2016,Legal Help,LEGAL AID FUND,THOMPSON & CO,1067577:145384551,"27,300.00",Legal Aid Payment Legal Help
MINISTRY OF JUSTICE,LEGAL AID AGENCY,28/09/2016,Higher Crime,LEGAL AID FUND,TIMOTHY GREY,1065595:145344840,"35,620.00",Legal Aid Payment Higher Crime
MINISTRY OF JUSTICE,LEGAL AID AGENCY,28/09/2016,Higher Crime,LEGAL AID FUND,TOSSWILL & CO-ADVOCATE,1063270:145366068,"37,488.44",Legal Aid Payment Higher Crime
MINISTRY OF JUSTICE,LEGAL AID AGENCY,28/09/2016,Higher Crime,LEGAL AID FUND,TRANTERS CRIMINAL LAW PRACTICE,1067355:145348310,"29,365.94",Legal Aid Payment Higher Crime
MINISTRY OF JUSTICE,LEGAL AID AGENCY,28/09/2016,Legal Help,LEGAL AID FUND,TRP SOLICITORS LTD,1066897:145384428,"26,600.00",Legal Aid Payment Legal Help
MINISTRY OF JUSTICE,LEGAL AID AGENCY,28/09/2016,Lower Crime,LEGAL AID FUND,TUCKERS SOLICITORS LLP,1065430:145386192,"30,500.00",Legal Aid Payment Lower Crime
MINISTRY OF JUSTICE,LEGAL AID AGENCY,28/09/2016,Lower Crime,LEGAL AID FUND,TUCKERS SOLICITORS LLP,1064959:145386137,"43,300.00",Legal Aid Payment Lower Crime
MINISTRY OF JUSTICE,LEGAL AID AGENCY,28/09/2016,Higher Crime,LEGAL AID FUND,TUCKERS SOLICITORS LLP,1064958:145356516,"46,440.85",Legal Aid Payment Higher Crime
MINISTRY OF JUSTICE,LEGAL AID AGENCY,28/09/2016,Lower Crime,LEGAL AID FUND,TUCKERS SOLICITORS LLP,1064957:145386007,"80,900.00",Legal Aid Payment Lower Crime
MINISTRY OF JUSTICE,LEGAL AID AGENCY,28/09/2016,Lower Crime,LEGAL AID FUND,TUCKERS SOLICITORS LLP,1064958:145385825,"110,000.00",Legal Aid Payment Lower Crime
MINISTRY OF JUSTICE,LEGAL AID AGENCY,28/09/2016,Lower Crime,LEGAL AID FUND,USMANI KING LTD,1067112:145386333,"41,437.00",Legal Aid Payment Lower Crime
MINISTRY OF JUSTICE,LEGAL AID AGENCY,28/09/2016,Lower Crime,LEGAL AID FUND,VHS FLETCHERS,1062838:145386202,"29,200.00",Legal Aid Payment Lower Crime
MINISTRY OF JUSTICE,LEGAL AID AGENCY,28/09/2016,Lower Crime,LEGAL AID FUND,VHS FLETCHERS,1064778:145385689,"66,500.00",Legal Aid Payment Lower Crime
MINISTRY OF JUSTICE,LEGAL AID AGENCY,28/09/2016,Lower Crime,LEGAL AID FUND,VICKERS & CO INC BERRI'S SOLICITORS,1065000:145386469,"38,301.00",Legal Aid Payment Lower Crime
MINISTRY OF JUSTICE,LEGAL AID AGENCY,28/09/2016,Lower Crime,LEGAL AID FUND,VICKERS CHISMAN & WISHLADE,1064909:145385867,"43,800.00",Legal Aid Payment Lower Crime
MINISTRY OF JUSTICE,LEGAL AID AGENCY,28/09/2016,Lower Crime,LEGAL AID FUND,VYMAN SOLICITORS LTD,1064521:145386677,"52,866.00",Legal Aid Payment Lower Crime
MINISTRY OF JUSTICE,LEGAL AID AGENCY,28/09/2016,Legal Help,LEGAL AID FUND,WAI LEUNG SOLICITORS,1064397:145384756,"27,478.00",Legal Aid Payment Legal Help
MINISTRY OF JUSTICE,LEGAL AID AGENCY,28/09/2016,Lower Crime,LEGAL AID FUND,WAINWRIGHT & CUMMINS LLP,1067020:145385840,"42,000.00",Legal Aid Payment Lower Crime
MINISTRY OF JUSTICE,LEGAL AID AGENCY,28/09/2016,Lower Crime,LEGAL AID FUND,WALKER LAHIVE,1067418:145386751,"32,097.00",Legal Aid Payment Lower Crime
MINISTRY OF JUSTICE,LEGAL AID AGENCY,28/09/2016,Lower Crime,LEGAL AID FUND,WATSON WOODHOUSE SOLICITORS LLP,1064951:145385868,"53,700.00",Legal Aid Payment Lower Crime
MINISTRY OF JUSTICE,LEGAL AID AGENCY,28/09/2016,Lower Crime,LEGAL AID FUND,WELLS BURCOMBE LLP,1066749:145386941,"46,727.00",Legal Aid Payment Lower Crime
MINISTRY OF JUSTICE,LEGAL AID AGENCY,28/09/2016,Lower Crime,LEGAL AID FUND,WELLS BURCOMBE LLP,1064356:145386328,"47,102.00",Legal Aid Payment Lower Crime
MINISTRY OF JUSTICE,LEGAL AID AGENCY,28/09/2016,Lower Crime,LEGAL AID FUND,WESSEX SOLICITORS CHAMBERS,1066840:145386167,"38,600.00",Legal Aid Payment Lower Crime
MINISTRY OF JUSTICE,LEGAL AID AGENCY,28/09/2016,Legal Help,LEGAL AID FUND,WICK & CO,1065265:145384992,"25,808.00",Legal Aid Payment Legal Help
MINISTRY OF JUSTICE,LEGAL AID AGENCY,28/09/2016,Lower Crime,LEGAL AID FUND,WILFORD SMITH & CO LTD,1067083:145386550,"28,299.00",Legal Aid Payment Lower Crime
MINISTRY OF JUSTICE,LEGAL AID AGENCY,28/09/2016,Civil Representation,LEGAL AID FUND,WILKINSON WOODWARD.,1067345:3000000698180005,"30,767.80",Legal Aid Payment Civil Representation
MINISTRY OF JUSTICE,LEGAL AID AGENCY,28/09/2016,Lower Crime,LEGAL AID FUND,WILSON DEVONALD GRIFFITHS JOHN,1067279:145385657,"45,000.00",Legal Aid Payment Lower Crime
MINISTRY OF JUSTICE,LEGAL AID AGENCY,28/09/2016,Legal Help,LEGAL AID FUND,WILSON SOLICITORS LLP,1065578:145385542,"32,644.00",Legal Aid Payment Legal Help
MINISTRY OF JUSTICE,LEGAL AID AGENCY,28/09/2016,Legal Help,LEGAL AID FUND,WILSON SOLICITORS LLP,1064711:145378716,"125,000.00",Legal Aid Payment Legal Help
MINISTRY OF JUSTICE,LEGAL AID AGENCY,28/09/2016,Legal Help,LEGAL AID FUND,WIMBLEDON SOLICITORS,1066725:145385357,"34,237.00",Legal Aid Payment Legal Help
MINISTRY OF JUSTICE,LEGAL AID AGENCY,28/09/2016,Civil Representation,LEGAL AID FUND,WOLLEN MICHELMORE,1067794:3000000504360032,"33,393.60",Legal Aid Payment Civil Representation
MINISTRY OF JUSTICE,LEGAL AID AGENCY,28/09/2016,Higher Crime,LEGAL AID FUND,WOODS SOLICITORS,1064384:145348015,"38,989.51",Legal Aid Payment Higher Crime
MINISTRY OF JUSTICE,LEGAL AID AGENCY,28/09/2016,Civil Representation,LEGAL AID FUND,WOOLLCOMBE & YONGE,1065297:3000000572540023,"35,698.94",Legal Aid Payment Civil Representation
MINISTRY OF JUSTICE,LEGAL AID AGENCY,28/09/2016,Lower Crime,LEGAL AID FUND,YARWOOD & STUBLEY,1064949:145385869,"35,900.00",Legal Aid Payment Lower Crime
MINISTRY OF JUSTICE,LEGAL AID AGENCY,28/09/2016,Legal Help,LEGAL AID FUND,YVA SOLICITORS,1064312:145385012,"29,521.00",Legal Aid Payment Legal Help
MINISTRY OF JUSTICE,LEGAL AID AGENCY,28/09/2016,Lower Crime,LEGAL AID FUND,ZMS LEGAL LTD TA ZMS SOLICITORS,1066898:145386292,"33,161.00",Legal Aid Payment Lower Crime
MINISTRY OF JUSTICE,LEGAL AID AGENCY,22/09/2016,Higher Crime,LEGAL AID FUND,A TOBY HEDWORTH QC,1059659:145293150,"29,492.15",Legal Aid Payment Higher Crime
MINISTRY OF JUSTICE,LEGAL AID AGENCY,22/09/2016,Higher Crime,LEGAL AID FUND,ABV SOLICITORS,1059808:145301389,"45,669.08",Legal Aid Payment Higher Crime
MINISTRY OF JUSTICE,LEGAL AID AGENCY,22/09/2016,Higher Crime,LEGAL AID FUND,ALASTAIR BATEMAN & CO,1059935:145302389,"93,533.06",Legal Aid Payment Higher Crime
MINISTRY OF JUSTICE,LEGAL AID AGENCY,22/09/2016,Civil Representation,LEGAL AID FUND,ALEV A GIZ,1059396:145230079,"31,007.42",Legal Aid Payment Civil Representation
MINISTRY OF JUSTICE,LEGAL AID AGENCY,22/09/2016,Civil Representation,LEGAL AID FUND,ALEV A GIZ,1059396:145230084,"-31,186.89",Legal Aid Payment Civil Representation
MINISTRY OF JUSTICE,LEGAL AID AGENCY,22/09/2016,Civil Representation,LEGAL AID FUND,ALEV A GIZ,1059396:145297563,"-38,188.80",Legal Aid Payment Civil Representation
MINISTRY OF JUSTICE,LEGAL AID AGENCY,22/09/2016,Civil Representation,LEGAL AID FUND,ALEV A GIZ,1059396:145248793,"39,614.40",Legal Aid Payment Civil Representation
MINISTRY OF JUSTICE,LEGAL AID AGENCY,22/09/2016,Higher Crime,LEGAL AID FUND,ALEXANDER JOHNSON,1062377:145301611,"81,347.36",Legal Aid Payment Higher Crime
MINISTRY OF JUSTICE,LEGAL AID AGENCY,22/09/2016,Higher Crime,LEGAL AID FUND,ALTAF SOLICITORS LTD,1061863:145292058,"38,767.91",Legal Aid Payment Higher Crime
MINISTRY OF JUSTICE,LEGAL AID AGENCY,22/09/2016,Higher Crime,LEGAL AID FUND,ANDREW C MARRS,1061587:145329060,"25,837.28",Legal Aid Payment Higher Crime
MINISTRY OF JUSTICE,LEGAL AID AGENCY,22/09/2016,Higher Crime,LEGAL AID FUND,ANTHONY C BERRY QC,1061747:145283037,"32,372.57",Legal Aid Payment Higher Crime
MINISTRY OF JUSTICE,LEGAL AID AGENCY,22/09/2016,Civil Representation,LEGAL AID FUND,ARMITAGE SYKES SOLICITORS LTD,1062209:3000000476170021,"39,773.57",Legal Aid Payment Civil Representation
MINISTRY OF JUSTICE,LEGAL AID AGENCY,22/09/2016,Higher Crime,LEGAL AID FUND,ASGHAR & CO,1062511:145134557,"35,671.56",Legal Aid Payment Higher Crime
MINISTRY OF JUSTICE,LEGAL AID AGENCY,22/09/2016,Higher Crime,LEGAL AID FUND,ASGHAR & CO,1062511:144634230,"44,226.68",Legal Aid Payment Higher Crime
MINISTRY OF JUSTICE,LEGAL AID AGENCY,22/09/2016,Higher Crime,LEGAL AID FUND,ASGHAR & CO,1062511:144756296,"45,252.63",Legal Aid Payment Higher Crime
MINISTRY OF JUSTICE,LEGAL AID AGENCY,22/09/2016,Higher Crime,LEGAL AID FUND,BAILEY GARCHA SOLICITORS LTD,1062355:145302392,"81,347.36",Legal Aid Payment Higher Crime
MINISTRY OF JUSTICE,LEGAL AID AGENCY,22/09/2016,Higher Crime,LEGAL AID FUND,BARK & CO,1060213:145311116,"26,464.44",Legal Aid Payment Higher Crime
MINISTRY OF JUSTICE,LEGAL AID AGENCY,22/09/2016,Higher Crime,LEGAL AID FUND,BARK & CO,1060213:145311257,"79,393.31",Legal Aid Payment Higher Crime
MINISTRY OF JUSTICE,LEGAL AID AGENCY,22/09/2016,Higher Crime,LEGAL AID FUND,BARTHOLOMEW R S CASELLA,1061467:145333685,"35,620.00",Legal Aid Payment Higher Crime
MINISTRY OF JUSTICE,LEGAL AID AGENCY,22/09/2016,Higher Crime,LEGAL AID FUND,BELL LAMB & JOYNSON,1062022:145311446,"97,616.83",Legal Aid Payment Higher Crime
MINISTRY OF JUSTICE,LEGAL AID AGENCY,22/09/2016,Higher Crime,LEGAL AID FUND,BHATIA BEST LTD,1060079:145292968,"30,422.74",Legal Aid Payment Higher Crime
MINISTRY OF JUSTICE,LEGAL AID AGENCY,22/09/2016,Higher Crime,LEGAL AID FUND,BIRDS SOLICITORS LTD,1061931:145333708,"38,523.07",Legal Aid Payment Higher Crime
MINISTRY OF JUSTICE,LEGAL AID AGENCY,22/09/2016,Civil Representation,LEGAL AID FUND,CAMERON JONES HUSSELL & HOWE,1060338:3000000416620018,"26,582.09",Legal Aid Payment Civil Representation
MINISTRY OF JUSTICE,LEGAL AID AGENCY,22/09/2016,Legal Help,LEGAL AID FUND,CARILLION ADVICE SERVICES,1060675:145289467,"47,908.08",Legal Aid Payment Legal Help
MINISTRY OF JUSTICE,LEGAL AID AGENCY,22/09/2016,Civil Representation,LEGAL AID FUND,CAROL A BINNION,1059670:3000000786330006,"25,380.00",Legal Aid Payment Civil Representation
MINISTRY OF JUSTICE,LEGAL AID AGENCY,22/09/2016,Higher Crime,LEGAL AID FUND,CARTWRIGHT KING SOLICITORS,1061916:145310615,"56,128.68",Legal Aid Payment Higher Crime
MINISTRY OF JUSTICE,LEGAL AID AGENCY,22/09/2016,Higher Crime,LEGAL AID FUND,CHARLES A BOTT QC,1059169:145305100,"37,800.00",Legal Aid Payment Higher Crime
MINISTRY OF JUSTICE,LEGAL AID AGENCY,22/09/2016,Higher Crime,LEGAL AID FUND,CHARLES MISKIN QC,1061465:145289714,"98,520.00",Legal Aid Payment Higher Crime
MINISTRY OF JUSTICE,LEGAL AID AGENCY,22/09/2016,Civil Representation,LEGAL AID FUND,CHILD LAW PARTNERSHIP LTD,1058834:3000000759150004,"26,434.71",Legal Aid Payment Civil Representation
MINISTRY OF JUSTICE,LEGAL AID AGENCY,22/09/2016,Higher Crime,LEGAL AID FUND,CHRISTOPHER TEHRANI QC,1061054:145282610,"30,281.59",Legal Aid Payment Higher Crime
MINISTRY OF JUSTICE,LEGAL AID AGENCY,22/09/2016,Higher Crime,LEGAL AID FUND,CITY LAW CHAMBERS LTD,1061852:145302350,"42,227.28",Legal Aid Payment Higher Crime
MINISTRY OF JUSTICE,LEGAL AID AGENCY,22/09/2016,Higher Crime,LEGAL AID FUND,COLIN J WELLS,1061668:145293240,"29,638.75",Legal Aid Payment Higher Crime
MINISTRY OF JUSTICE,LEGAL AID AGENCY,22/09/2016,Higher Crime,LEGAL AID FUND,COTISENS SOLICITORS,1059948:145302384,"78,406.47",Legal Aid Payment Higher Crime
MINISTRY OF JUSTICE,LEGAL AID AGENCY,22/09/2016,Civil Representation,LEGAL AID FUND,CYRUS R LARIZADEH,1061341:3000000875950028,"42,411.60",Legal Aid Payment Civil Representation
MINISTRY OF JUSTICE,LEGAL AID AGENCY,22/09/2016,Civil Representation,LEGAL AID FUND,D S LEGAL,1060930:145305942,"29,893.06",Legal Aid Payment Civil Representation
MINISTRY OF JUSTICE,LEGAL AID AGENCY,22/09/2016,Civil Representation,LEGAL AID FUND,DAWSON CORNWELL,1062454:145334169,"35,000.03",Legal Aid Payment Civil Representation
MINISTRY OF JUSTICE,LEGAL AID AGENCY,22/09/2016,Higher Crime,LEGAL AID FUND,DEAN R GEORGE,1061181:145282241,"25,984.90",Legal Aid Payment Higher Crime
MINISTRY OF JUSTICE,LEGAL AID AGENCY,22/09/2016,Legal Help,LEGAL AID FUND,DIRECT HELP & ADVICE LTD,1061910:145289473,"27,778.64",Legal Aid Payment Legal Help
MINISTRY OF JUSTICE,LEGAL AID AGENCY,22/09/2016,Higher Crime,LEGAL AID FUND,DJMS SOLICITORS LTD,1058484:145301766,"47,650.31",Legal Aid Payment Higher Crime
MINISTRY OF JUSTICE,LEGAL AID AGENCY,22/09/2016,Higher Crime,LEGAL AID FUND,DUNCAN J W PENNY,1061501:145310535,"38,961.07",Legal Aid Payment Higher Crime
MINISTRY OF JUSTICE,LEGAL AID AGENCY,22/09/2016,Civil Representation,LEGAL AID FUND,E CATRIN JOHN,1059387:145251365,"-25,745.94",Legal Aid Payment Civil Representation
MINISTRY OF JUSTICE,LEGAL AID AGENCY,22/09/2016,Civil Representation,LEGAL AID FUND,E CATRIN JOHN,1059387:145232483,"37,668.00",Legal Aid Payment Civil Representation
MINISTRY OF JUSTICE,LEGAL AID AGENCY,22/09/2016,Higher Crime,LEGAL AID FUND,FARLEYS SOLICITORS LLP,1062342:145302340,"107,574.07",Legal Aid Payment Higher Crime
MINISTRY OF JUSTICE,LEGAL AID AGENCY,22/09/2016,Civil Representation,LEGAL AID FUND,FIONA BRUCE & CO LLP,1062092:145325269,"26,558.41",Legal Aid Payment Civil Representation
MINISTRY OF JUSTICE,LEGAL AID AGENCY,22/09/2016,Civil Representation,LEGAL AID FUND,FMW LAW LTD,1062412:145287823,"25,266.30",Legal Aid Payment Civil Representation
MINISTRY OF JUSTICE,LEGAL AID AGENCY,22/09/2016,Civil Representation,LEGAL AID FUND,FMW LAW LTD,1062412:145287824,"-27,516.30",Legal Aid Payment Civil Representation
MINISTRY OF JUSTICE,LEGAL AID AGENCY,22/09/2016,Civil Representation,LEGAL AID FUND,FORT & CO SOLICITORS,1058769:145286513,"-36,033.65",Legal Aid Payment Civil Representation
MINISTRY OF JUSTICE,LEGAL AID AGENCY,22/09/2016,Civil Representation,LEGAL AID FUND,FORT & CO SOLICITORS,1058769:145286512,"37,985.21",Legal Aid Payment Civil Representation
MINISTRY OF JUSTICE,LEGAL AID AGENCY,22/09/2016,Civil Representation,LEGAL AID FUND,FRENCH & CO,1060131:145334950,"27,754.73",Legal Aid Payment Civil Representation
MINISTRY OF JUSTICE,LEGAL AID AGENCY,22/09/2016,Higher Crime,LEGAL AID FUND,GARY T BELL QC,1059266:145329179,"44,623.50",Legal Aid Payment Higher Crime
MINISTRY OF JUSTICE,LEGAL AID AGENCY,22/09/2016,Civil Representation,LEGAL AID FUND,GILLIAN RADFORD & CO,1059788:145334692,"-27,820.90",Legal Aid Payment Civil Representation
MINISTRY OF JUSTICE,LEGAL AID AGENCY,22/09/2016,Civil Representation,LEGAL AID FUND,GILLIAN RADFORD & CO,1059788:145334691,"29,238.90",Legal Aid Payment Civil Representation
MINISTRY OF JUSTICE,LEGAL AID AGENCY,22/09/2016,Higher Crime,LEGAL AID FUND,GRECH GOODEN SOLICITORS LTD,1061837:145283010,"27,086.10",Legal Aid Payment Higher Crime
MINISTRY OF JUSTICE,LEGAL AID AGENCY,22/09/2016,Higher Crime,LEGAL AID FUND,HARRIS SOLICITORS,1061734:145293269,"32,184.01",Legal Aid Payment Higher Crime
MINISTRY OF JUSTICE,LEGAL AID AGENCY,22/09/2016,Higher Crime,LEGAL AID FUND,HARRIS SOLICITORS,1061734:145302394,"42,357.85",Legal Aid Payment Higher Crime
MINISTRY OF JUSTICE,LEGAL AID AGENCY,22/09/2016,Higher Crime,LEGAL AID FUND,HARRIS SOLICITORS,1061734:145302391,"97,616.83",Legal Aid Payment Higher Crime
MINISTRY OF JUSTICE,LEGAL AID AGENCY,22/09/2016,Higher Crime,LEGAL AID FUND,HODGE JONES & ALLEN LLP,1062370:145302050,"40,462.91",Legal Aid Payment Higher Crime
MINISTRY OF JUSTICE,LEGAL AID AGENCY,22/09/2016,Legal Help,LEGAL AID FUND,HOWELLS LLP,1062250:145308009,"26,485.42",Legal Aid Payment Legal Help
MINISTRY OF JUSTICE,LEGAL AID AGENCY,22/09/2016,Higher Crime,LEGAL AID FUND,I B B SOLICITORS,1059831:145298422,"26,302.71",Legal Aid Payment Higher Crime
MINISTRY OF JUSTICE,LEGAL AID AGENCY,22/09/2016,Higher Crime,LEGAL AID FUND,J D SPICER ZEB,1061739:145283404,"29,884.85",Legal Aid Payment Higher Crime
MINISTRY OF JUSTICE,LEGAL AID AGENCY,22/09/2016,Higher Crime,LEGAL AID FUND,J DEXTER DIAS,1060818:145329710,"26,987.51",Legal Aid Payment Higher Crime
MINISTRY OF JUSTICE,LEGAL AID AGENCY,22/09/2016,Higher Crime,LEGAL AID FUND,JBR MORGAN LTD,1061717:145302380,"139,210.19",Legal Aid Payment Higher Crime
MINISTRY OF JUSTICE,LEGAL AID AGENCY,22/09/2016,Higher Crime,LEGAL AID FUND,JOHN MCGUINNESS QC,1059661:145307926,"75,600.00",Legal Aid Payment Higher Crime
MINISTRY OF JUSTICE,LEGAL AID AGENCY,22/09/2016,Higher Crime,LEGAL AID FUND,JOHNSON ASTILLS,1062143:145302353,"43,467.29",Legal Aid Payment Higher Crime
MINISTRY OF JUSTICE,LEGAL AID AGENCY,22/09/2016,Higher Crime,LEGAL AID FUND,JONATHAN JAMES TURNER,1058749:145329315,"27,819.60",Legal Aid Payment Higher Crime
MINISTRY OF JUSTICE,LEGAL AID AGENCY,22/09/2016,Civil Representation,LEGAL AID FUND,JUSTIN H W GRAY,1059649:3000000328500012,"31,784.40",Legal Aid Payment Civil Representation
MINISTRY OF JUSTICE,LEGAL AID AGENCY,22/09/2016,Higher Crime,LEGAL AID FUND,K A SOLICITORS,1061712:145310591,"87,241.72",Legal Aid Payment Higher Crime
MINISTRY OF JUSTICE,LEGAL AID AGENCY,22/09/2016,Higher Crime,LEGAL AID FUND,KARIM & CO SOLICITORS,1062004:145282865,"37,226.00",Legal Aid Payment Higher Crime
MINISTRY OF JUSTICE,LEGAL AID AGENCY,22/09/2016,Higher Crime,LEGAL AID FUND,KBS SOLICITORS,1061823:145311376,"95,707.01",Legal Aid Payment Higher Crime
MINISTRY OF JUSTICE,LEGAL AID AGENCY,22/09/2016,Higher Crime,LEGAL AID FUND,L P EVANS SOLICITORS,1059768:145302352,"82,689.89",Legal Aid Payment Higher Crime
MINISTRY OF JUSTICE,LEGAL AID AGENCY,22/09/2016,Higher Crime,LEGAL AID FUND,LESTER MORRILL INC DAVIES GORE LOMAX,1062236:145283263,"26,698.09",Legal Aid Payment Higher Crime
MINISTRY OF JUSTICE,LEGAL AID AGENCY,22/09/2016,Higher Crime,LEGAL AID FUND,LEWIS NEDAS & CO,1060449:145311142,"31,726.08",Legal Aid Payment Higher Crime
MINISTRY OF JUSTICE,LEGAL AID AGENCY,22/09/2016,Civil Representation,LEGAL AID FUND,LUCY SPRINZ,1059317:145248532,"35,825.54",Legal Aid Payment Civil Representation
MINISTRY OF JUSTICE,LEGAL AID AGENCY,22/09/2016,Civil Representation,LEGAL AID FUND,MAKIN DIXON SOLICITORS LTD,1059859:3000000817420012,"33,222.34",Legal Aid Payment Civil Representation
MINISTRY OF JUSTICE,LEGAL AID AGENCY,22/09/2016,Higher Crime,LEGAL AID FUND,MANN & CO SOLICITORS,1062060:145310983,"26,820.01",Legal Aid Payment Higher Crime
MINISTRY OF JUSTICE,LEGAL AID AGENCY,22/09/2016,Higher Crime,LEGAL AID FUND,MARK N BRYANT-HERON,1061639:145333620,"65,840.00",Legal Aid Payment Higher Crime
MINISTRY OF JUSTICE,LEGAL AID AGENCY,22/09/2016,Civil Representation,LEGAL AID FUND,MICHELLE CHRISTIE,1059647:3000000875950029,"31,985.28",Legal Aid Payment Civil Representation
MINISTRY OF JUSTICE,LEGAL AID AGENCY,22/09/2016,Civil Representation,LEGAL AID FUND,MORRISON SPOWART LTD,1059924:145297994,"36,498.07",Legal Aid Payment Civil Representation
MINISTRY OF JUSTICE,LEGAL AID AGENCY,22/09/2016,Higher Crime,LEGAL AID FUND,NAVJOT SIDHU,1061675:145329845,"40,632.70",Legal Aid Payment Higher Crime
MINISTRY OF JUSTICE,LEGAL AID AGENCY,22/09/2016,Higher Crime,LEGAL AID FUND,NIGEL L LITHMAN QC,1059056:145308314,"64,200.00",Legal Aid Payment Higher Crime
MINISTRY OF JUSTICE,LEGAL AID AGENCY,22/09/2016,Higher Crime,LEGAL AID FUND,NOBLE SOLICITORS,1060073:145302390,"89,975.11",Legal Aid Payment Higher Crime
MINISTRY OF JUSTICE,LEGAL AID AGENCY,22/09/2016,Higher Crime,LEGAL AID FUND,O'GARRA'S SOLICITORS,1061971:145328920,"68,560.95",Legal Aid Payment Higher Crime
MINISTRY OF JUSTICE,LEGAL AID AGENCY,22/09/2016,Higher Crime,LEGAL AID FUND,OLD BAILEY SOLICITORS LTD,1062048:145282543,"37,685.03",Legal Aid Payment Higher Crime
MINISTRY OF JUSTICE,LEGAL AID AGENCY,22/09/2016,Higher Crime,LEGAL AID FUND,OLLIERS,1061972:145329665,"65,768.03",Legal Aid Payment Higher Crime
MINISTRY OF JUSTICE,LEGAL AID AGENCY,22/09/2016,Higher Crime,LEGAL AID FUND,PARDOES LLP,1060372:145329143,"27,499.93",Legal Aid Payment Higher Crime
MINISTRY OF JUSTICE,LEGAL AID AGENCY,22/09/2016,Higher Crime,LEGAL AID FUND,PAUL CROWLEY & CO SOLICITORS LTD,1062045:145293223,"60,803.28",Legal Aid Payment Higher Crime
MINISTRY OF JUSTICE,LEGAL AID AGENCY,22/09/2016,Higher Crime,LEGAL AID FUND,PAUL K WILLIAMS,1060809:145324200,"48,000.00",Legal Aid Payment Higher Crime
MINISTRY OF JUSTICE,LEGAL AID AGENCY,22/09/2016,Higher Crime,LEGAL AID FUND,PAUL R KELEHER QC,1061676:145292487,"25,114.67",Legal Aid Payment Higher Crime
MINISTRY OF JUSTICE,LEGAL AID AGENCY,22/09/2016,Higher Crime,LEGAL AID FUND,PHILIPPA C A EASTWOOD,1059039:145308001,"37,800.00",Legal Aid Payment Higher Crime
MINISTRY OF JUSTICE,LEGAL AID AGENCY,22/09/2016,Higher Crime,LEGAL AID FUND,POWELL SPENCER AND PARTNERS,1062372:145311222,"52,035.29",Legal Aid Payment Higher Crime
MINISTRY OF JUSTICE,LEGAL AID AGENCY,22/09/2016,Higher Crime,LEGAL AID FUND,QUINN MELVILLE,1059907:145302388,"49,860.01",Legal Aid Payment Higher Crime
MINISTRY OF JUSTICE,LEGAL AID AGENCY,22/09/2016,Civil Representation,LEGAL AID FUND,RACHEL A LANGDALE QC,1059094:3000000738360041,"28,449.78",Legal Aid Payment Civil Representation
MINISTRY OF JUSTICE,LEGAL AID AGENCY,22/09/2016,Higher Crime,LEGAL AID FUND,RICHARD BUTCHER,1059243:145329506,"27,585.17",Legal Aid Payment Higher Crime
MINISTRY OF JUSTICE,LEGAL AID AGENCY,22/09/2016,Civil Representation,LEGAL AID FUND,RICHARD M A HADLEY,1059228:145287029,"27,706.84",Legal Aid Payment Civil Representation
MINISTRY OF JUSTICE,LEGAL AID AGENCY,22/09/2016,Civil Representation,LEGAL AID FUND,RIDLEY & HALL LEGAL LTD,1061898:3000000489810015,"45,870.28",Legal Aid Payment Civil Representation
MINISTRY OF JUSTICE,LEGAL AID AGENCY,22/09/2016,Higher Crime,LEGAL AID FUND,RUSTEM GUARDIAN SOLICITORS,1059803:145310486,"49,340.86",Legal Aid Payment Higher Crime
MINISTRY OF JUSTICE,LEGAL AID AGENCY,22/09/2016,Higher Crime,LEGAL AID FUND,S H DAD SOLICITORS,1061788:145329839,"33,011.51",Legal Aid Payment Higher Crime
MINISTRY OF JUSTICE,LEGAL AID AGENCY,22/09/2016,Civil Representation,LEGAL AID FUND,SAMANTHA J BIRTLES,1059497:145325492,"26,160.00",Legal Aid Payment Civil Representation
MINISTRY OF JUSTICE,LEGAL AID AGENCY,22/09/2016,Legal Help,LEGAL AID FUND,SHELTER.,1059699:145289709,"37,161.04",Legal Aid Payment Legal Help
MINISTRY OF JUSTICE,LEGAL AID AGENCY,22/09/2016,Higher Crime,LEGAL AID FUND,SIMON BAKER,1061483:145334018,"32,200.00",Legal Aid Payment Higher Crime
MINISTRY OF JUSTICE,LEGAL AID AGENCY,22/09/2016,Higher Crime,LEGAL AID FUND,SIMON L BICKLER QC,1059080:145283386,"49,205.16",Legal Aid Payment Higher Crime
MINISTRY OF JUSTICE,LEGAL AID AGENCY,22/09/2016,Legal Help,LEGAL AID FUND,SIMPSON MILLAR SOLICITORS LLP,1061764:145297991,"113,871.14",Legal Aid Payment Legal Help
MINISTRY OF JUSTICE,LEGAL AID AGENCY,22/09/2016,Higher Crime,LEGAL AID FUND,SONN MACMILLAN WALKER LTD,1062497:145328435,"84,992.74",Legal Aid Payment Higher Crime
MINISTRY OF JUSTICE,LEGAL AID AGENCY,22/09/2016,Legal Help,LEGAL AID FUND,T. A. LAW,1059695:145289713,"33,773.70",Legal Aid Payment Legal Help
MINISTRY OF JUSTICE,LEGAL AID AGENCY,22/09/2016,Higher Crime,LEGAL AID FUND,TEESSIDE LAW LTD,1058619:145292441,"113,771.68",Legal Aid Payment Higher Crime
MINISTRY OF JUSTICE,LEGAL AID AGENCY,22/09/2016,Legal Help,LEGAL AID FUND,THE COMMUNITY LAW PARTNERSHIP LTD,1059969:145297035,"30,308.58",Legal Aid Payment Legal Help
MINISTRY OF JUSTICE,LEGAL AID AGENCY,22/09/2016,Higher Crime,LEGAL AID FUND,THOMPSON & CO,1062352:145282427,"26,656.28",Legal Aid Payment Higher Crime
MINISTRY OF JUSTICE,LEGAL AID AGENCY,22/09/2016,Higher Crime,LEGAL AID FUND,THOMPSON & CO,1062352:145302386,"105,857.75",Legal Aid Payment Higher Crime
MINISTRY OF JUSTICE,LEGAL AID AGENCY,22/09/2016,Higher Crime,LEGAL AID FUND,TIMOTHY J KENDALL,1061195:145308529,"26,833.33",Legal Aid Payment Higher Crime
MINISTRY OF JUSTICE,LEGAL AID AGENCY,22/09/2016,Civil Representation,LEGAL AID FUND,TRETHOWANS LLP,1058541:145324850,"29,655.21",Legal Aid Payment Civil Representation
MINISTRY OF JUSTICE,LEGAL AID AGENCY,22/09/2016,Higher Crime,LEGAL AID FUND,TUCKERS SOLICITORS LLP,1060200:145292988,"35,256.38",Legal Aid Payment Higher Crime
MINISTRY OF JUSTICE,LEGAL AID AGENCY,22/09/2016,Higher Crime,LEGAL AID FUND,TUCKERS SOLICITORS LLP,1060199:145302393,"71,900.70",Legal Aid Payment Higher Crime
MINISTRY OF JUSTICE,LEGAL AID AGENCY,22/09/2016,Higher Crime,LEGAL AID FUND,TYRONE G SMITH,1061667:145293310,"41,263.20",Legal Aid Payment Higher Crime
MINISTRY OF JUSTICE,LEGAL AID AGENCY,22/09/2016,Higher Crime,LEGAL AID FUND,UK LAW,1061743:145292060,"97,545.21",Legal Aid Payment Higher Crime
MINISTRY OF JUSTICE,LEGAL AID AGENCY,22/09/2016,Higher Crime,LEGAL AID FUND,WILL J MARTIN,1058897:145333644,"33,200.00",Legal Aid Payment Higher Crime
MINISTRY OF JUSTICE,LEGAL AID AGENCY,22/09/2016,Civil Representation,LEGAL AID FUND,WILLIAM J TYLER,1061346:3000000700110021,"85,827.60",Legal Aid Payment Civil Representation
MINISTRY OF JUSTICE,LEGAL AID AGENCY,22/09/2016,Higher Crime,LEGAL AID FUND,WILSON DEVONALD GRIFFITHS JOHN,1060931:145310972,"32,264.24",Legal Aid Payment Higher Crime
MINISTRY OF JUSTICE,LEGAL AID AGENCY,21/09/2016,Civil Representation,LEGAL AID FUND,BOOTS STARKE GOACHER SOLICITORS,1058435:300000036354DSW102,"61,001.04",Legal Aid Payment Civil Representation
MINISTRY OF JUSTICE,LEGAL AID AGENCY,20/09/2016,Civil Representation,LEGAL AID FUND,ANDREW J M SPINK QC,1058412:134971329,"-29,720.16",Legal Aid Payment Civil Representation
MINISTRY OF JUSTICE,LEGAL AID AGENCY,14/09/2016,Civil Representation,LEGAL AID FUND,A & N CARE SOLICITORS,1056704:145232943,"29,430.90",Legal Aid Payment Civil Representation
MINISTRY OF JUSTICE,LEGAL AID AGENCY,14/09/2016,Higher Crime,LEGAL AID FUND,ABBEY SOLICITORS,1055716:145254670,"89,975.11",Legal Aid Payment Higher Crime
MINISTRY OF JUSTICE,LEGAL AID AGENCY,14/09/2016,Higher Crime,LEGAL AID FUND,ABV SOLICITORS,1055689:145272874,"30,262.26",Legal Aid Payment Higher Crime
MINISTRY OF JUSTICE,LEGAL AID AGENCY,14/09/2016,Higher Crime,LEGAL AID FUND,ADAM M BUTLER,1057009:145273807,"25,595.40",Legal Aid Payment Higher Crime
MINISTRY OF JUSTICE,LEGAL AID AGENCY,14/09/2016,Higher Crime,LEGAL AID FUND,ADAM V S KANE,1056996:145278364,"64,200.00",Legal Aid Payment Higher Crime
MINISTRY OF JUSTICE,LEGAL AID AGENCY,14/09/2016,Higher Crime,LEGAL AID FUND,ALEXANDER JOHNSON,1056195:145246278,"81,347.36",Legal Aid Payment Higher Crime
MINISTRY OF JUSTICE,LEGAL AID AGENCY,14/09/2016,Higher Crime,LEGAL AID FUND,ALEXANDRA HEALY QC,1055491:145267315,"65,840.00",Legal Aid Payment Higher Crime
MINISTRY OF JUSTICE,LEGAL AID AGENCY,14/09/2016,Higher Crime,LEGAL AID FUND,ALLEN HOOLE SOLICITORS,1056032:145245553,"40,284.64",Legal Aid Payment Higher Crime
MINISTRY OF JUSTICE,LEGAL AID AGENCY,14/09/2016,Higher Crime,LEGAL AID FUND,ALTAF SOLICITORS LTD,1057623:145254680,"81,347.36",Legal Aid Payment Higher Crime
MINISTRY OF JUSTICE,LEGAL AID AGENCY,14/09/2016,Higher Crime,LEGAL AID FUND,AMOSU ROBINSHAW LTD,1055788:145246211,"31,912.46",Legal Aid Payment Higher Crime
MINISTRY OF JUSTICE,LEGAL AID AGENCY,14/09/2016,Higher Crime,LEGAL AID FUND,ANDREW S J ALTY,1055210:145237624,"30,534.38",Legal Aid Payment Higher Crime
MINISTRY OF JUSTICE,LEGAL AID AGENCY,14/09/2016,Higher Crime,LEGAL AID FUND,ANGELA PORTER SOLICITORS,1055698:145238002,"37,414.22",Legal Aid Payment Higher Crime
MINISTRY OF JUSTICE,LEGAL AID AGENCY,14/09/2016,Civil Representation,LEGAL AID FUND,ANGELS SOLICITORS LLP,1056170:145250361,"-27,378.10",Legal Aid Payment Civil Representation
MINISTRY OF JUSTICE,LEGAL AID AGENCY,14/09/2016,Civil Representation,LEGAL AID FUND,ANGELS SOLICITORS LLP,1056170:145250360,"27,523.60",Legal Aid Payment Civil Representation
MINISTRY OF JUSTICE,LEGAL AID AGENCY,14/09/2016,Higher Crime,LEGAL AID FUND,ANYA L LEWIS,1056618:145274033,"26,919.20",Legal Aid Payment Higher Crime
MINISTRY OF JUSTICE,LEGAL AID AGENCY,14/09/2016,Higher Crime,LEGAL AID FUND,BLACKFORDS LLP,1056265:145254505,"67,957.90",Legal Aid Payment Higher Crime
MINISTRY OF JUSTICE,LEGAL AID AGENCY,14/09/2016,Higher Crime,LEGAL AID FUND,BOSLEY & CO,1058226:145254520,"89,975.11",Legal Aid Payment Higher Crime
MINISTRY OF JUSTICE,LEGAL AID AGENCY,14/09/2016,Higher Crime,LEGAL AID FUND,BROWN BEER NIXON MALLON.,1055722:145254624,"74,069.29",Legal Aid Payment Higher Crime
MINISTRY OF JUSTICE,LEGAL AID AGENCY,14/09/2016,Civil Representation,LEGAL AID FUND,BUTCHER & BARLOW LLP,1056076:145266652,"25,751.05",Legal Aid Payment Civil Representation
MINISTRY OF JUSTICE,LEGAL AID AGENCY,14/09/2016,Higher Crime,LEGAL AID FUND,CARRINGTONS SOLICITORS,1057603:145255123,"47,650.31",Legal Aid Payment Higher Crime
MINISTRY OF JUSTICE,LEGAL AID AGENCY,14/09/2016,Higher Crime,LEGAL AID FUND,CATHERINE COLLINS,1056458:145278951,"33,200.00",Legal Aid Payment Higher Crime
MINISTRY OF JUSTICE,LEGAL AID AGENCY,14/09/2016,Higher Crime,LEGAL AID FUND,CHARLES G LANDER,1055120:145227259,"25,901.40",Legal Aid Payment Higher Crime
MINISTRY OF JUSTICE,LEGAL AID AGENCY,14/09/2016,Civil Representation,LEGAL AID FUND,CHIVERS WALSH FAMILY LAW,1057991:145233280,"-45,645.67",Legal Aid Payment Civil Representation
MINISTRY OF JUSTICE,LEGAL AID AGENCY,14/09/2016,Civil Representation,LEGAL AID FUND,CHIVERS WALSH FAMILY LAW,1057991:145233269,"45,820.39",Legal Aid Payment Civil Representation
MINISTRY OF JUSTICE,LEGAL AID AGENCY,14/09/2016,Higher Crime,LEGAL AID FUND,CLAIRE E S HOWELL,1057232:145237823,"28,548.82",Legal Aid Payment Higher Crime
MINISTRY OF JUSTICE,LEGAL AID AGENCY,14/09/2016,Civil Representation,LEGAL AID FUND,CREIGHTON & PARTNERS,1057688:145232432,"38,177.06",Legal Aid Payment Civil Representation
MINISTRY OF JUSTICE,LEGAL AID AGENCY,14/09/2016,Civil Representation,LEGAL AID FUND,D S LEGAL,1058136:145192020,"25,412.17",Legal Aid Payment Civil Representation
MINISTRY OF JUSTICE,LEGAL AID AGENCY,14/09/2016,Higher Crime,LEGAL AID FUND,DANIEL JAMESON,1057208:145279206,"32,200.00",Legal Aid Payment Higher Crime
MINISTRY OF JUSTICE,LEGAL AID AGENCY,14/09/2016,Higher Crime,LEGAL AID FUND,DAVID MARTIN-SPERRY,1057522:145227395,"53,124.36",Legal Aid Payment Higher Crime
MINISTRY OF JUSTICE,LEGAL AID AGENCY,14/09/2016,Civil Representation,LEGAL AID FUND,DEBORAH HOLLINGWORTH,1058351:1000000314720001,"29,582.64",Legal Aid Payment Civil Representation
MINISTRY OF JUSTICE,LEGAL AID AGENCY,14/09/2016,Civil Representation,LEGAL AID FUND,DEBORAH L MILLER,1056521:145248946,"31,609.07",Legal Aid Payment Civil Representation
MINISTRY OF JUSTICE,LEGAL AID AGENCY,14/09/2016,Higher Crime,LEGAL AID FUND,DPP LAW LTD,1055773:145254970,"70,119.17",Legal Aid Payment Higher Crime
MINISTRY OF JUSTICE,LEGAL AID AGENCY,14/09/2016,Higher Crime,LEGAL AID FUND,DRISCOLL YOUNG SOLICITORS LTD,1057808:145272908,"48,182.60",Legal Aid Payment Higher Crime
MINISTRY OF JUSTICE,LEGAL AID AGENCY,14/09/2016,Higher Crime,LEGAL AID FUND,EBR ATTRIDGE LLP,1055735:145272891,"33,090.70",Legal Aid Payment Higher Crime
MINISTRY OF JUSTICE,LEGAL AID AGENCY,14/09/2016,Higher Crime,LEGAL AID FUND,EMILY PITTS,1056915:145273534,"39,542.76",Legal Aid Payment Higher Crime
MINISTRY OF JUSTICE,LEGAL AID AGENCY,14/09/2016,Higher Crime,LEGAL AID FUND,FARADAYS SOLICITORS LTD,1057830:145238210,"49,300.76",Legal Aid Payment Higher Crime
MINISTRY OF JUSTICE,LEGAL AID AGENCY,14/09/2016,Civil Representation,LEGAL AID FUND,FIELD FISHER WATERHOUSE LLP,1054377:144907499,"-26,673.75",Legal Aid Payment Civil Representation
MINISTRY OF JUSTICE,LEGAL AID AGENCY,14/09/2016,Civil Representation,LEGAL AID FUND,FRENCH & CO,1057865:145277405,"-32,779.11",Legal Aid Payment Civil Representation
MINISTRY OF JUSTICE,LEGAL AID AGENCY,14/09/2016,Civil Representation,LEGAL AID FUND,FRENCH & CO,1057865:145277404,"34,137.64",Legal Aid Payment Civil Representation
MINISTRY OF JUSTICE,LEGAL AID AGENCY,14/09/2016,Higher Crime,LEGAL AID FUND,GEORGE A CARTER-STEPHENSON QC,1057390:145243136,"65,840.00",Legal Aid Payment Higher Crime
MINISTRY OF JUSTICE,LEGAL AID AGENCY,14/09/2016,Higher Crime,LEGAL AID FUND,GOODALL BARNETT JAMES SOLICITORS,1058120:145254587,"37,685.03",Legal Aid Payment Higher Crime
MINISTRY OF JUSTICE,LEGAL AID AGENCY,14/09/2016,Civil Representation,LEGAL AID FUND,GRAHAM & ROSEN LTD,1057962:145231577,"29,916.92",Legal Aid Payment Civil Representation
MINISTRY OF JUSTICE,LEGAL AID AGENCY,14/09/2016,Civil Representation,LEGAL AID FUND,GRANVILLE-WEST CHIVERS & MORGAN,1056318:145045961,"32,559.87",Legal Aid Payment Civil Representation
MINISTRY OF JUSTICE,LEGAL AID AGENCY,14/09/2016,Higher Crime,LEGAL AID FUND,GUNEY CLARK & RYAN LTD CO,1055759:145254578,"105,857.75",Legal Aid Payment Higher Crime
MINISTRY OF JUSTICE,LEGAL AID AGENCY,14/09/2016,Higher Crime,LEGAL AID FUND,HALLINAN BLACKBURN GITTINGS & NOTT,1056260:145273920,"33,973.61",Legal Aid Payment Higher Crime
MINISTRY OF JUSTICE,LEGAL AID AGENCY,14/09/2016,Higher Crime,LEGAL AID FUND,HALLINAN BLACKBURN GITTINGS & NOTT,1056260:145254701,"95,707.01",Legal Aid Payment Higher Crime
MINISTRY OF JUSTICE,LEGAL AID AGENCY,14/09/2016,Civil Representation,LEGAL AID FUND,HRS FAMILY LAW SOLICITORS LTD,1054625:145278379,"-59,564.58",Legal Aid Payment Civil Representation
MINISTRY OF JUSTICE,LEGAL AID AGENCY,14/09/2016,Civil Representation,LEGAL AID FUND,HRS FAMILY LAW SOLICITORS LTD,1054625:145278374,"59,914.58",Legal Aid Payment Civil Representation
MINISTRY OF JUSTICE,LEGAL AID AGENCY,14/09/2016,Higher Crime,LEGAL AID FUND,IAN M BOURNE QC,1057521:145227430,"76,773.95",Legal Aid Payment Higher Crime
MINISTRY OF JUSTICE,LEGAL AID AGENCY,14/09/2016,Higher Crime,LEGAL AID FUND,IMRAN KHAN & PARTNERS,1056294:145237917,"28,743.79",Legal Aid Payment Higher Crime
MINISTRY OF JUSTICE,LEGAL AID AGENCY,14/09/2016,Higher Crime,LEGAL AID FUND,J D SOLICITORS,1055676:145273466,"34,215.65",Legal Aid Payment Higher Crime
MINISTRY OF JUSTICE,LEGAL AID AGENCY,14/09/2016,Civil Representation,LEGAL AID FUND,JANE DE ZONIE,1054646:145242053,"-32,468.56",Legal Aid Payment Civil Representation
MINISTRY OF JUSTICE,LEGAL AID AGENCY,14/09/2016,Civil Representation,LEGAL AID FUND,JANE DE ZONIE,1054646:145212599,"36,894.00",Legal Aid Payment Civil Representation
MINISTRY OF JUSTICE,LEGAL AID AGENCY,14/09/2016,Higher Crime,LEGAL AID FUND,JANES SOLICITORS,1056098:145279693,"32,570.18",Legal Aid Payment Higher Crime
MINISTRY OF JUSTICE,LEGAL AID AGENCY,14/09/2016,Civil Representation,LEGAL AID FUND,JENNIFER L SCULLY,1055529:3000000615100007,"29,499.36",Legal Aid Payment Civil Representation
MINISTRY OF JUSTICE,LEGAL AID AGENCY,14/09/2016,Higher Crime,LEGAL AID FUND,JOHN A BLACK QC,1054711:145278953,"65,840.00",Legal Aid Payment Higher Crime
MINISTRY OF JUSTICE,LEGAL AID AGENCY,14/09/2016,Civil Representation,LEGAL AID FUND,JONATHAN L BAKER QC,1056565:145242050,"-44,438.63",Legal Aid Payment Civil Representation
MINISTRY OF JUSTICE,LEGAL AID AGENCY,14/09/2016,Civil Representation,LEGAL AID FUND,JONATHAN L BAKER QC,1056565:145212580,"59,251.50",Legal Aid Payment Civil Representation
MINISTRY OF JUSTICE,LEGAL AID AGENCY,14/09/2016,Higher Crime,LEGAL AID FUND,JONES KNOWLES WARBURTON LTD,1055884:145246087,"29,664.55",Legal Aid Payment Higher Crime
MINISTRY OF JUSTICE,LEGAL AID AGENCY,14/09/2016,Higher Crime,LEGAL AID FUND,JOSEPH HILL & CO,1055973:145254696,"79,144.36",Legal Aid Payment Higher Crime
MINISTRY OF JUSTICE,LEGAL AID AGENCY,14/09/2016,Higher Crime,LEGAL AID FUND,JUILA M A FLANAGAN,1057528:145237562,"31,510.87",Legal Aid Payment Higher Crime
MINISTRY OF JUSTICE,LEGAL AID AGENCY,14/09/2016,Higher Crime,LEGAL AID FUND,JUNG LAW LTD,1055997:145254554,"93,931.85",Legal Aid Payment Higher Crime
MINISTRY OF JUSTICE,LEGAL AID AGENCY,14/09/2016,Higher Crime,LEGAL AID FUND,KAIM TODNER SOLICITORS LIMITED,1056248:145227467,"32,397.88",Legal Aid Payment Higher Crime
MINISTRY OF JUSTICE,LEGAL AID AGENCY,14/09/2016,Higher Crime,LEGAL AID FUND,KEPPE ROFER,1057849:145245504,"46,440.85",Legal Aid Payment Higher Crime
MINISTRY OF JUSTICE,LEGAL AID AGENCY,14/09/2016,Higher Crime,LEGAL AID FUND,KRISTINA HARRISON SOLICITORS,1058083:145254513,"87,301.76",Legal Aid Payment Higher Crime
MINISTRY OF JUSTICE,LEGAL AID AGENCY,14/09/2016,Higher Crime,LEGAL AID FUND,LANSBURY WORTHINGTON,1056146:145254579,"95,707.01",Legal Aid Payment Higher Crime
MINISTRY OF JUSTICE,LEGAL AID AGENCY,14/09/2016,Higher Crime,LEGAL AID FUND,LANYON BOWDLER LLP,1058072:145227444,"26,323.57",Legal Aid Payment Higher Crime
MINISTRY OF JUSTICE,LEGAL AID AGENCY,14/09/2016,Higher Crime,LEGAL AID FUND,LAURIE-ANNE POWER,1055053:145255005,"45,003.60",Legal Aid Payment Higher Crime
MINISTRY OF JUSTICE,LEGAL AID AGENCY,14/09/2016,Higher Crime,LEGAL AID FUND,LAWRENCE & CO,1057765:145254710,"78,265.50",Legal Aid Payment Higher Crime
MINISTRY OF JUSTICE,LEGAL AID AGENCY,14/09/2016,Higher Crime,LEGAL AID FUND,LAWTONS SOLICITORS LTD,1055700:145272887,"39,406.12",Legal Aid Payment Higher Crime
MINISTRY OF JUSTICE,LEGAL AID AGENCY,14/09/2016,Higher Crime,LEGAL AID FUND,LIBERTY LAW SOLICITORS LTD,1057574:145273934,"31,658.09",Legal Aid Payment Higher Crime
MINISTRY OF JUSTICE,LEGAL AID AGENCY,14/09/2016,Higher Crime,LEGAL AID FUND,LLOYDS PR SOLICITORS,1055632:145274110,"25,723.68",Legal Aid Payment Higher Crime
MINISTRY OF JUSTICE,LEGAL AID AGENCY,14/09/2016,Higher Crime,LEGAL AID FUND,LLOYDS PR SOLICITORS,1055632:145273569,"26,102.19",Legal Aid Payment Higher Crime
MINISTRY OF JUSTICE,LEGAL AID AGENCY,14/09/2016,Higher Crime,LEGAL AID FUND,M B LAW LTD,1057576:145238120,"34,320.44",Legal Aid Payment Higher Crime
MINISTRY OF JUSTICE,LEGAL AID AGENCY,14/09/2016,Higher Crime,LEGAL AID FUND,MANN & CO SOLICITORS,1057806:145245471,"26,820.01",Legal Aid Payment Higher Crime
MINISTRY OF JUSTICE,LEGAL AID AGENCY,14/09/2016,Higher Crime,LEGAL AID FUND,MARIA MASSELIS,1056848:145255118,"26,213.92",Legal Aid Payment Higher Crime
MINISTRY OF JUSTICE,LEGAL AID AGENCY,14/09/2016,Civil Representation,LEGAL AID FUND,MCGUINNESS LEGAL,1054675:145249519,"-28,245.08",Legal Aid Payment Civil Representation
MINISTRY OF JUSTICE,LEGAL AID AGENCY,14/09/2016,Civil Representation,LEGAL AID FUND,MCGUINNESS LEGAL,1054675:145249517,"28,803.86",Legal Aid Payment Civil Representation
MINISTRY OF JUSTICE,LEGAL AID AGENCY,14/09/2016,Higher Crime,LEGAL AID FUND,MCMILLAN WILLIAMS SOLICITORS LTD,1056223:145245327,"26,820.01",Legal Aid Payment Higher Crime
MINISTRY OF JUSTICE,LEGAL AID AGENCY,14/09/2016,Higher Crime,LEGAL AID FUND,MICHAEL TURNER QC,1056599:145227083,"26,525.56",Legal Aid Payment Higher Crime
MINISTRY OF JUSTICE,LEGAL AID AGENCY,14/09/2016,Higher Crime,LEGAL AID FUND,MICHAEL TURNER QC,1056599:145237343,"63,376.87",Legal Aid Payment Higher Crime
MINISTRY OF JUSTICE,LEGAL AID AGENCY,14/09/2016,Higher Crime,LEGAL AID FUND,MITCHELLS SOLICITORS LLP,1057581:145254392,"35,901.47",Legal Aid Payment Higher Crime
MINISTRY OF JUSTICE,LEGAL AID AGENCY,14/09/2016,Higher Crime,LEGAL AID FUND,MTG SOLICITORS,1057677:145254569,"97,258.75",Legal Aid Payment Higher Crime
MINISTRY OF JUSTICE,LEGAL AID AGENCY,14/09/2016,Civil Representation,LEGAL AID FUND,NELSONS SOLICITORS LTD,1054374:8039768,"60,042.32",Legal Aid Payment Civil Representation
MINISTRY OF JUSTICE,LEGAL AID AGENCY,14/09/2016,Civil Representation,LEGAL AID FUND,NELSONS SOLICITORS LTD,1054373:8039769,"76,108.88",Legal Aid Payment Civil Representation
MINISTRY OF JUSTICE,LEGAL AID AGENCY,14/09/2016,Higher Crime,LEGAL AID FUND,NERIDA HARFORD-BELL,1054568:145237857,"51,415.56",Legal Aid Payment Higher Crime
MINISTRY OF JUSTICE,LEGAL AID AGENCY,14/09/2016,Higher Crime,LEGAL AID FUND,NICHOLAS AND PARTNERS,1056185:145227057,"30,705.19",Legal Aid Payment Higher Crime
MINISTRY OF JUSTICE,LEGAL AID AGENCY,14/09/2016,Higher Crime,LEGAL AID FUND,NIGEL L LITHMAN QC,1055085:145246381,"42,699.07",Legal Aid Payment Higher Crime
MINISTRY OF JUSTICE,LEGAL AID AGENCY,14/09/2016,Higher Crime,LEGAL AID FUND,NOBLE SOLICITORS,1055926:145254608,"89,975.11",Legal Aid Payment Higher Crime
MINISTRY OF JUSTICE,LEGAL AID AGENCY,14/09/2016,Higher Crime,LEGAL AID FUND,NORRIE WAITE & SLATER,1056048:145254664,"48,861.08",Legal Aid Payment Higher Crime
MINISTRY OF JUSTICE,LEGAL AID AGENCY,14/09/2016,Higher Crime,LEGAL AID FUND,O'KEEFFE SOLICITORS,1056296:145226771,"54,539.94",Legal Aid Payment Higher Crime
MINISTRY OF JUSTICE,LEGAL AID AGENCY,14/09/2016,Higher Crime,LEGAL AID FUND,OLLIERS,1057816:145278751,"64,004.56",Legal Aid Payment Higher Crime
MINISTRY OF JUSTICE,LEGAL AID AGENCY,14/09/2016,Higher Crime,LEGAL AID FUND,O'NEILL SOLICITORS NEWCASTLE LTD,1057953:145254983,"66,340.53",Legal Aid Payment Higher Crime
MINISTRY OF JUSTICE,LEGAL AID AGENCY,14/09/2016,Higher Crime,LEGAL AID FUND,OPUS LAW,1057585:145278275,"45,602.34",Legal Aid Payment Higher Crime
MINISTRY OF JUSTICE,LEGAL AID AGENCY,14/09/2016,Higher Crime,LEGAL AID FUND,PATTICHI HILL & CROQUES LTD,1057814:145254640,"105,857.75",Legal Aid Payment Higher Crime
MINISTRY OF JUSTICE,LEGAL AID AGENCY,14/09/2016,Civil Representation,LEGAL AID FUND,PAUL M STOREY QC,1054964:145232021,"49,257.06",Legal Aid Payment Civil Representation
MINISTRY OF JUSTICE,LEGAL AID AGENCY,14/09/2016,Higher Crime,LEGAL AID FUND,PEACH GREY & CO,1058043:145254557,"118,323.43",Legal Aid Payment Higher Crime
MINISTRY OF JUSTICE,LEGAL AID AGENCY,14/09/2016,Higher Crime,LEGAL AID FUND,PHILIPPA M MCATASNEY QC,1054732:145254753,"39,139.63",Legal Aid Payment Higher Crime
MINISTRY OF JUSTICE,LEGAL AID AGENCY,14/09/2016,Higher Crime,LEGAL AID FUND,PHILIPPA M MCATASNEY QC,1054732:145279201,"64,200.00",Legal Aid Payment Higher Crime
MINISTRY OF JUSTICE,LEGAL AID AGENCY,14/09/2016,Higher Crime,LEGAL AID FUND,RAANA SHEIKH,1055004:145254893,"26,946.60",Legal Aid Payment Higher Crime
MINISTRY OF JUSTICE,LEGAL AID AGENCY,14/09/2016,Higher Crime,LEGAL AID FUND,RAGVEER K CHAND,1057523:145226750,"34,699.22",Legal Aid Payment Higher Crime
MINISTRY OF JUSTICE,LEGAL AID AGENCY,14/09/2016,Higher Crime,LEGAL AID FUND,RAHMAN RAVELLI SOLICTORS LTD,1057789:145277985,"103,575.04",Legal Aid Payment Higher Crime
MINISTRY OF JUSTICE,LEGAL AID AGENCY,14/09/2016,Civil Representation,LEGAL AID FUND,RAMSDENS SOLICITORS LLP,1056721:3000000911860010,"30,810.40",Legal Aid Payment Civil Representation
MINISTRY OF JUSTICE,LEGAL AID AGENCY,14/09/2016,Civil Representation,LEGAL AID FUND,RAMSDENS SOLICITORS LLP,1055594:145268888,"31,423.74",Legal Aid Payment Civil Representation
MINISTRY OF JUSTICE,LEGAL AID AGENCY,14/09/2016,Higher Crime,LEGAL AID FUND,RASHID & CO,1055767:145245387,"52,808.68",Legal Aid Payment Higher Crime
MINISTRY OF JUSTICE,LEGAL AID AGENCY,14/09/2016,Higher Crime,LEGAL AID FUND,RICHARD J PRATT QC,1057023:145274217,"25,623.68",Legal Aid Payment Higher Crime
MINISTRY OF JUSTICE,LEGAL AID AGENCY,14/09/2016,Higher Crime,LEGAL AID FUND,RICHARD M BARRACLOUGH QC,1056844:145227945,"45,680.76",Legal Aid Payment Higher Crime
MINISTRY OF JUSTICE,LEGAL AID AGENCY,14/09/2016,Higher Crime,LEGAL AID FUND,RONALD FLETCHER BAKER LLP,1058237:145273872,"26,355.19",Legal Aid Payment Higher Crime
MINISTRY OF JUSTICE,LEGAL AID AGENCY,14/09/2016,Higher Crime,LEGAL AID FUND,ROWE SPARKES SOLICITORS LTD,1055758:145254536,"74,462.43",Legal Aid Payment Higher Crime
MINISTRY OF JUSTICE,LEGAL AID AGENCY,14/09/2016,Civil Representation,LEGAL AID FUND,RUSSELL-COOKE LLP,1054376:Ledger Transfer Adjustment 832,"-72,903.26",Legal Aid Payment Civil Representation
MINISTRY OF JUSTICE,LEGAL AID AGENCY,14/09/2016,Civil Representation,LEGAL AID FUND,SALLY WILCOCK & CO,1057606:145266899,"27,535.16",Legal Aid Payment Civil Representation
MINISTRY OF JUSTICE,LEGAL AID AGENCY,14/09/2016,Higher Crime,LEGAL AID FUND,SANSBURY DOUGLAS,1055669:145254616,"47,116.56",Legal Aid Payment Higher Crime
MINISTRY OF JUSTICE,LEGAL AID AGENCY,14/09/2016,Higher Crime,LEGAL AID FUND,SHEARMAN BOWEN & CO,1057795:145254517,"58,317.02",Legal Aid Payment Higher Crime
MINISTRY OF JUSTICE,LEGAL AID AGENCY,14/09/2016,Higher Crime,LEGAL AID FUND,SIMON RUSSELL-FLINT QC,1057202:145246592,"45,306.47",Legal Aid Payment Higher Crime
MINISTRY OF JUSTICE,LEGAL AID AGENCY,14/09/2016,Higher Crime,LEGAL AID FUND,SMITH PARTNERSHIP,1057733:145254707,"97,258.75",Legal Aid Payment Higher Crime
MINISTRY OF JUSTICE,LEGAL AID AGENCY,14/09/2016,Higher Crime,LEGAL AID FUND,STEPHEN FIDLER & CO,1057817:145254568,"32,713.49",Legal Aid Payment Higher Crime
MINISTRY OF JUSTICE,LEGAL AID AGENCY,14/09/2016,Higher Crime,LEGAL AID FUND,STUART BIGGS,1055480:145267379,"33,200.00",Legal Aid Payment Higher Crime
MINISTRY OF JUSTICE,LEGAL AID AGENCY,14/09/2016,Higher Crime,LEGAL AID FUND,STUART MILLER SOLICITORS LTD,1056127:145245628,"27,022.54",Legal Aid Payment Higher Crime
MINISTRY OF JUSTICE,LEGAL AID AGENCY,14/09/2016,Higher Crime,LEGAL AID FUND,STUART MILLER SOLICITORS LTD,1056127:145238155,"28,217.27",Legal Aid Payment Higher Crime
MINISTRY OF JUSTICE,LEGAL AID AGENCY,14/09/2016,Higher Crime,LEGAL AID FUND,STUART MILLER SOLICITORS LTD,1056127:145254198,"40,151.38",Legal Aid Payment Higher Crime
MINISTRY OF JUSTICE,LEGAL AID AGENCY,14/09/2016,Higher Crime,LEGAL AID FUND,SWINBURNE MADDISON LLP,1057947:145273870,"61,065.11",Legal Aid Payment Higher Crime
MINISTRY OF JUSTICE,LEGAL AID AGENCY,14/09/2016,Lower Crime,LEGAL AID FUND,THE JOHNSON PARTNERSHIP,1057856:145258660,"28,487.33",Legal Aid Payment Lower Crime
MINISTRY OF JUSTICE,LEGAL AID AGENCY,14/09/2016,Higher Crime,LEGAL AID FUND,THOMAS WAINWRIGHT,1056545:145226936,"30,152.86",Legal Aid Payment Higher Crime
MINISTRY OF JUSTICE,LEGAL AID AGENCY,14/09/2016,Higher Crime,LEGAL AID FUND,TIMOTHY J MOLONEY QC,1057412:145251087,"65,840.00",Legal Aid Payment Higher Crime
MINISTRY OF JUSTICE,LEGAL AID AGENCY,14/09/2016,Higher Crime,LEGAL AID FUND,TUCKERS SOLICITORS LLP,1056125:145254589,"72,243.81",Legal Aid Payment Higher Crime
MINISTRY OF JUSTICE,LEGAL AID AGENCY,14/09/2016,Higher Crime,LEGAL AID FUND,WALTERS SOLICITORS,1057493:145274388,"54,709.55",Legal Aid Payment Higher Crime
MINISTRY OF JUSTICE,LEGAL AID AGENCY,14/09/2016,Higher Crime,LEGAL AID FUND,WALTERS SOLICITORS,1057493:145254637,"79,378.35",Legal Aid Payment Higher Crime
MINISTRY OF JUSTICE,LEGAL AID AGENCY,14/09/2016,Higher Crime,LEGAL AID FUND,WHITELOCK & STORR,1058234:145272896,"81,347.36",Legal Aid Payment Higher Crime
MINISTRY OF JUSTICE,LEGAL AID AGENCY,09/09/2016,Civil Representation,LEGAL AID FUND,OSBORNE MORRIS & MORGAN,1054346:145043648,"-25,180.76",Legal Aid Payment Civil Representation
MINISTRY OF JUSTICE,LEGAL AID AGENCY,09/09/2016,Civil Representation,LEGAL AID FUND,OSBORNE MORRIS & MORGAN,1054346:145043712,"-27,585.00",Legal Aid Payment Civil Representation
MINISTRY OF JUSTICE,LEGAL AID AGENCY,09/09/2016,Civil Representation,LEGAL AID FUND,PANNONE LLP,1054345:144596975,"-39,870.01",Legal Aid Payment Civil Representation
MINISTRY OF JUSTICE,LEGAL AID AGENCY,07/09/2016,Higher Crime,LEGAL AID FUND,ABBEY SOLICITORS,1051689:145217116,"66,041.78",Legal Aid Payment Higher Crime
MINISTRY OF JUSTICE,LEGAL AID AGENCY,07/09/2016,Lower Crime,LEGAL AID FUND,ALDRIDGE BROWNLEE SOLICITORS LLP,1052205:145127123,"-27,300.00",Legal Aid Payment Lower Crime
MINISTRY OF JUSTICE,LEGAL AID AGENCY,07/09/2016,Higher Crime,LEGAL AID FUND,ALTAF SOLICITORS LTD,1053591:145218526,"29,664.55",Legal Aid Payment Higher Crime
MINISTRY OF JUSTICE,LEGAL AID AGENCY,07/09/2016,Higher Crime,LEGAL AID FUND,ANDREW JEFFERIES QC,1052965:145177563,"29,313.59",Legal Aid Payment Higher Crime
MINISTRY OF JUSTICE,LEGAL AID AGENCY,07/09/2016,Higher Crime,LEGAL AID FUND,ANDREW JEFFERIES QC,1052965:145185173,"49,401.55",Legal Aid Payment Higher Crime
MINISTRY OF JUSTICE,LEGAL AID AGENCY,07/09/2016,Higher Crime,LEGAL AID FUND,ANDREW W SMITH,1050819:145218112,"32,894.40",Legal Aid Payment Higher Crime
MINISTRY OF JUSTICE,LEGAL AID AGENCY,07/09/2016,Civil Representation,LEGAL AID FUND,ATKINSON & FIRTH,1053697:3000000261120011,"38,566.58",Legal Aid Payment Civil Representation
MINISTRY OF JUSTICE,LEGAL AID AGENCY,07/09/2016,Higher Crime,LEGAL AID FUND,B H MOHAMMED,1052117:145217185,"26,820.01",Legal Aid Payment Higher Crime
MINISTRY OF JUSTICE,LEGAL AID AGENCY,07/09/2016,Higher Crime,LEGAL AID FUND,B H MOHAMMED,1052117:145186626,"105,857.75",Legal Aid Payment Higher Crime
MINISTRY OF JUSTICE,LEGAL AID AGENCY,07/09/2016,Higher Crime,LEGAL AID FUND,BCL BURTON COPELAND,1052265:145182617,"39,015.45",Legal Aid Payment Higher Crime
MINISTRY OF JUSTICE,LEGAL AID AGENCY,07/09/2016,Higher Crime,LEGAL AID FUND,BISHOP & LIGHT SOLICITORS,1054187:145217129,"81,347.36",Legal Aid Payment Higher Crime
MINISTRY OF JUSTICE,LEGAL AID AGENCY,07/09/2016,Higher Crime,LEGAL AID FUND,BIVONAS LLP,1051978:145224076,"59,124.45",Legal Aid Payment Higher Crime
MINISTRY OF JUSTICE,LEGAL AID AGENCY,07/09/2016,Higher Crime,LEGAL AID FUND,BURRELL JENKINS SOLICITORS,1051619:145217155,"25,184.99",Legal Aid Payment Higher Crime
MINISTRY OF JUSTICE,LEGAL AID AGENCY,07/09/2016,Civil Representation,LEGAL AID FUND,CAMERON JONES HUSSELL & HOWE,1054096:3000000380800005,"30,000.00",Legal Aid Payment Civil Representation
MINISTRY OF JUSTICE,LEGAL AID AGENCY,07/09/2016,Higher Crime,LEGAL AID FUND,CARTWRIGHT KING SOLICITORS,1053525:145217144,"33,720.40",Legal Aid Payment Higher Crime
MINISTRY OF JUSTICE,LEGAL AID AGENCY,07/09/2016,Higher Crime,LEGAL AID FUND,CHARLES M J FALK,1053425:145177761,"34,414.82",Legal Aid Payment Higher Crime
MINISTRY OF JUSTICE,LEGAL AID AGENCY,07/09/2016,Higher Crime,LEGAL AID FUND,CHIVERS SOLICITORS,1053843:145186639,"25,843.20",Legal Aid Payment Higher Crime
MINISTRY OF JUSTICE,LEGAL AID AGENCY,07/09/2016,Civil Representation,LEGAL AID FUND,CHRISTOPHER BUTTERFIELD,1050851:3000000481520037,"26,995.37",Legal Aid Payment Civil Representation
MINISTRY OF JUSTICE,LEGAL AID AGENCY,07/09/2016,Higher Crime,LEGAL AID FUND,CITY LAW CHAMBERS LTD,1053583:145217212,"32,267.28",Legal Aid Payment Higher Crime
MINISTRY OF JUSTICE,LEGAL AID AGENCY,07/09/2016,Higher Crime,LEGAL AID FUND,COBLEYS LLP,1051746:145186460,"81,347.36",Legal Aid Payment Higher Crime
MINISTRY OF JUSTICE,LEGAL AID AGENCY,07/09/2016,Higher Crime,LEGAL AID FUND,COURTENAY GRIFFITHS QC,1052468:145177200,"39,140.94",Legal Aid Payment Higher Crime
MINISTRY OF JUSTICE,LEGAL AID AGENCY,07/09/2016,Civil Representation,LEGAL AID FUND,CYRUS R LARIZADEH,1051145:144791479,"43,740.00",Legal Aid Payment Civil Representation
MINISTRY OF JUSTICE,LEGAL AID AGENCY,07/09/2016,Higher Crime,LEGAL AID FUND,DARTON LAW LIMITED,1053521:145186272,"27,639.05",Legal Aid Payment Higher Crime
MINISTRY OF JUSTICE,LEGAL AID AGENCY,07/09/2016,Civil Representation,LEGAL AID FUND,DAVID GRAY LLP,1050254:300000002547DCL860,"37,861.70",Legal Aid Payment Civil Representation
MINISTRY OF JUSTICE,LEGAL AID AGENCY,07/09/2016,Civil Representation,LEGAL AID FUND,DAVIS & SIMMONDS & DONAGHEY,1053639:145180853,"-25,843.34",Legal Aid Payment Civil Representation
MINISTRY OF JUSTICE,LEGAL AID AGENCY,07/09/2016,Higher Crime,LEGAL AID FUND,DIANA ELLIS QC,1053432:145168956,"-38,039.76",Legal Aid Payment Higher Crime
MINISTRY OF JUSTICE,LEGAL AID AGENCY,07/09/2016,Higher Crime,LEGAL AID FUND,DIANA ELLIS QC,1053432:145176902,"42,736.56",Legal Aid Payment Higher Crime
MINISTRY OF JUSTICE,LEGAL AID AGENCY,07/09/2016,Higher Crime,LEGAL AID FUND,DPP LAW LTD,1051748:145186657,"26,820.01",Legal Aid Payment Higher Crime
MINISTRY OF JUSTICE,LEGAL AID AGENCY,07/09/2016,Civil Representation,LEGAL AID FUND,E J MOYLE,1051829:145214329,"-35,924.36",Legal Aid Payment Civil Representation
MINISTRY OF JUSTICE,LEGAL AID AGENCY,07/09/2016,Civil Representation,LEGAL AID FUND,E J MOYLE,1051829:145214321,"36,050.16",Legal Aid Payment Civil Representation
MINISTRY OF JUSTICE,LEGAL AID AGENCY,07/09/2016,Higher Crime,LEGAL AID FUND,EBR ATTRIDGE LLP,1051622:145177410,"41,450.05",Legal Aid Payment Higher Crime
MINISTRY OF JUSTICE,LEGAL AID AGENCY,07/09/2016,Civil Representation,LEGAL AID FUND,EUFRON VAN BESOUW,1053441:3000000690370003,"34,371.00",Legal Aid Payment Civil Representation
MINISTRY OF JUSTICE,LEGAL AID AGENCY,07/09/2016,Higher Crime,LEGAL AID FUND,FARLEYS SOLICITORS LLP,1052009:145217119,"69,149.48",Legal Aid Payment Higher Crime
MINISTRY OF JUSTICE,LEGAL AID AGENCY,07/09/2016,Higher Crime,LEGAL AID FUND,FARNSWORTH MORGAN BAKHAT,1051616:145196588,"26,855.43",Legal Aid Payment Higher Crime
MINISTRY OF JUSTICE,LEGAL AID AGENCY,07/09/2016,Higher Crime,LEGAL AID FUND,FREEMANS SOLICITORS.,1054212:145177279,"29,335.40",Legal Aid Payment Higher Crime
MINISTRY OF JUSTICE,LEGAL AID AGENCY,07/09/2016,Civil Representation,LEGAL AID FUND,FREEMANS SOLICITORS.,1054212:145035434,"43,200.00",Legal Aid Payment Civil Representation
MINISTRY OF JUSTICE,LEGAL AID AGENCY,07/09/2016,Higher Crime,LEGAL AID FUND,FREERS ASKEW BUNTING SOLICITORS LTD,1054030:145217142,"74,069.29",Legal Aid Payment Higher Crime
MINISTRY OF JUSTICE,LEGAL AID AGENCY,07/09/2016,Lower Crime,LEGAL AID FUND,GEOFF WHITE & CO,1053648:145214091,"40,000.00",Legal Aid Payment Lower Crime
MINISTRY OF JUSTICE,LEGAL AID AGENCY,07/09/2016,Higher Crime,LEGAL AID FUND,GOODALL BARNETT JAMES SOLICITORS-ADVOCATE,1052784:144818746,"-25,458.28",Legal Aid Payment Higher Crime
MINISTRY OF JUSTICE,LEGAL AID AGENCY,07/09/2016,Higher Crime,LEGAL AID FUND,GORDON COLE QC,1051068:145177482,"50,801.63",Legal Aid Payment Higher Crime
MINISTRY OF JUSTICE,LEGAL AID AGENCY,07/09/2016,Higher Crime,LEGAL AID FUND,GRAHAME H JAMES,1050988:145185733,"29,460.43",Legal Aid Payment Higher Crime
MINISTRY OF JUSTICE,LEGAL AID AGENCY,07/09/2016,Higher Crime,LEGAL AID FUND,GUY R BOWDEN,1051494:145176819,"34,983.62",Legal Aid Payment Higher Crime
MINISTRY OF JUSTICE,LEGAL AID AGENCY,07/09/2016,Higher Crime,LEGAL AID FUND,GWB HARTHILLS LLP,1053686:145217110,"97,800.73",Legal Aid Payment Higher Crime
MINISTRY OF JUSTICE,LEGAL AID AGENCY,07/09/2016,Higher Crime,LEGAL AID FUND,HODGE JONES & ALLEN LLP,1052123:145217126,"105,857.75",Legal Aid Payment Higher Crime
MINISTRY OF JUSTICE,LEGAL AID AGENCY,07/09/2016,Higher Crime,LEGAL AID FUND,HOWELLS LLP,1051567:145177729,"26,698.10",Legal Aid Payment Higher Crime
MINISTRY OF JUSTICE,LEGAL AID AGENCY,07/09/2016,Higher Crime,LEGAL AID FUND,IMRAN KHAN & PARTNERS,1052218:145217146,"89,975.11",Legal Aid Payment Higher Crime
MINISTRY OF JUSTICE,LEGAL AID AGENCY,07/09/2016,Higher Crime,LEGAL AID FUND,JAMES P HOLLAND,1051495:145177539,"32,235.62",Legal Aid Payment Higher Crime
MINISTRY OF JUSTICE,LEGAL AID AGENCY,07/09/2016,Higher Crime,LEGAL AID FUND,JANES SOLICITORS,1052030:145196584,"49,159.96",Legal Aid Payment Higher Crime
MINISTRY OF JUSTICE,LEGAL AID AGENCY,07/09/2016,Higher Crime,LEGAL AID FUND,JBR MORGAN LTD,1053552:145217104,"26,656.28",Legal Aid Payment Higher Crime
MINISTRY OF JUSTICE,LEGAL AID AGENCY,07/09/2016,Civil Representation,LEGAL AID FUND,JOHNSON & GAUNT,1054132:145179984,"48,318.93",Legal Aid Payment Civil Representation
MINISTRY OF JUSTICE,LEGAL AID AGENCY,07/09/2016,Civil Representation,LEGAL AID FUND,JULIA F TOWNEND,1052574:145221925,"-30,000.00",Legal Aid Payment Civil Representation
MINISTRY OF JUSTICE,LEGAL AID AGENCY,07/09/2016,Higher Crime,LEGAL AID FUND,KEANEY & CO SOLICITORS,1052332:145218436,"54,527.35",Legal Aid Payment Higher Crime
MINISTRY OF JUSTICE,LEGAL AID AGENCY,07/09/2016,Higher Crime,LEGAL AID FUND,KEANEY WHITEHEAD PARTNERSHIP,1053588:145217169,"31,021.67",Legal Aid Payment Higher Crime
MINISTRY OF JUSTICE,LEGAL AID AGENCY,07/09/2016,Higher Crime,LEGAL AID FUND,KEIR B MONTEITH,1052575:145168422,"45,817.56",Legal Aid Payment Higher Crime
MINISTRY OF JUSTICE,LEGAL AID AGENCY,07/09/2016,Higher Crime,LEGAL AID FUND,KEMPS,1052086:145177392,"33,798.90",Legal Aid Payment Higher Crime
MINISTRY OF JUSTICE,LEGAL AID AGENCY,07/09/2016,Higher Crime,LEGAL AID FUND,LIBERTY LAW SOLICITORS LTD,1053633:145185976,"32,123.44",Legal Aid Payment Higher Crime
MINISTRY OF JUSTICE,LEGAL AID AGENCY,07/09/2016,Higher Crime,LEGAL AID FUND,LLOYDS PR SOLICITORS,1053574:145217216,"37,733.56",Legal Aid Payment Higher Crime
MINISTRY OF JUSTICE,LEGAL AID AGENCY,07/09/2016,Higher Crime,LEGAL AID FUND,LLOYDS PR SOLICITORS,1053574:145176750,"125,533.90",Legal Aid Payment Higher Crime
MINISTRY OF JUSTICE,LEGAL AID AGENCY,07/09/2016,Higher Crime,LEGAL AID FUND,MARK JONES & PARTNERS,1051773:145196770,"64,136.37",Legal Aid Payment Higher Crime
MINISTRY OF JUSTICE,LEGAL AID AGENCY,07/09/2016,Higher Crime,LEGAL AID FUND,MATHEW J SHERRATT,1050985:145168461,"25,900.97",Legal Aid Payment Higher Crime
MINISTRY OF JUSTICE,LEGAL AID AGENCY,07/09/2016,Civil Representation,LEGAL AID FUND,MCMILLAN WILLIAMS SOLICITORS LTD,1050702:145065926,"36,420.77",Legal Aid Payment Civil Representation
MINISTRY OF JUSTICE,LEGAL AID AGENCY,07/09/2016,Higher Crime,LEGAL AID FUND,METROLAW SOLICITORS,1050327:145218398,"49,729.07",Legal Aid Payment Higher Crime
MINISTRY OF JUSTICE,LEGAL AID AGENCY,07/09/2016,Higher Crime,LEGAL AID FUND,MIDDLEWEEKS LEGAL LTD,1054051:145185258,"26,820.01",Legal Aid Payment Higher Crime
MINISTRY OF JUSTICE,LEGAL AID AGENCY,07/09/2016,Civil Representation,LEGAL AID FUND,MILES & PARTNERS LLP,1053948:145224060,"25,363.82",Legal Aid Payment Civil Representation
MINISTRY OF JUSTICE,LEGAL AID AGENCY,07/09/2016,Higher Crime,LEGAL AID FUND,NIGEL J POWER QC,1053026:145196382,"41,082.97",Legal Aid Payment Higher Crime
MINISTRY OF JUSTICE,LEGAL AID AGENCY,07/09/2016,Civil Representation,LEGAL AID FUND,NOBLE SOLICITORS,1053831:145054347,"28,495.63",Legal Aid Payment Civil Representation
MINISTRY OF JUSTICE,LEGAL AID AGENCY,07/09/2016,Higher Crime,LEGAL AID FUND,NORCROSS LEES & RICHES,1052001:145176772,"29,664.55",Legal Aid Payment Higher Crime
MINISTRY OF JUSTICE,LEGAL AID AGENCY,07/09/2016,Higher Crime,LEGAL AID FUND,NORRIE WAITE & SLATER,1051899:145177631,"38,723.04",Legal Aid Payment Higher Crime
MINISTRY OF JUSTICE,LEGAL AID AGENCY,07/09/2016,Civil Representation,LEGAL AID FUND,PHILCOX GRAY & CO,1052255:145223277,"38,621.85",Legal Aid Payment Civil Representation
MINISTRY OF JUSTICE,LEGAL AID AGENCY,07/09/2016,Higher Crime,LEGAL AID FUND,PHILIPPA M MCATASNEY QC,1052577:145172207,"64,200.00",Legal Aid Payment Higher Crime
MINISTRY OF JUSTICE,LEGAL AID AGENCY,07/09/2016,Higher Crime,LEGAL AID FUND,RAHMAN RAVELLI SOLICTORS LTD,1053815:145186325,"81,347.36",Legal Aid Payment Higher Crime
MINISTRY OF JUSTICE,LEGAL AID AGENCY,07/09/2016,Civil Representation,LEGAL AID FUND,RAMSDENS SOLICITORS LLP,1050703:145213983,"27,798.53",Legal Aid Payment Civil Representation
MINISTRY OF JUSTICE,LEGAL AID AGENCY,07/09/2016,Civil Representation,LEGAL AID FUND,REBECCA L DAVIES,1053292:3000000363540013,"74,293.49",Legal Aid Payment Civil Representation
MINISTRY OF JUSTICE,LEGAL AID AGENCY,07/09/2016,Higher Crime,LEGAL AID FUND,RICHARD NELSON LLP,1051705:145181356,"34,971.95",Legal Aid Payment Higher Crime
MINISTRY OF JUSTICE,LEGAL AID AGENCY,07/09/2016,Higher Crime,LEGAL AID FUND,ROBERT LAYTON & CO,1052254:145217170,"27,486.29",Legal Aid Payment Higher Crime
MINISTRY OF JUSTICE,LEGAL AID AGENCY,07/09/2016,Higher Crime,LEGAL AID FUND,ROWE SPARKES SOLICITORS LTD,1051640:145177416,"99,852.82",Legal Aid Payment Higher Crime
MINISTRY OF JUSTICE,LEGAL AID AGENCY,07/09/2016,Higher Crime,LEGAL AID FUND,ROXANNE T MORRELL,1050993:145186198,"34,608.24",Legal Aid Payment Higher Crime
MINISTRY OF JUSTICE,LEGAL AID AGENCY,07/09/2016,Higher Crime,LEGAL AID FUND,RUNDLEWALKER,1052173:145196756,"81,347.36",Legal Aid Payment Higher Crime
MINISTRY OF JUSTICE,LEGAL AID AGENCY,07/09/2016,Higher Crime,LEGAL AID FUND,RUSTEM GUARDIAN SOLICITORS,1051659:145217149,"26,948.20",Legal Aid Payment Higher Crime
MINISTRY OF JUSTICE,LEGAL AID AGENCY,07/09/2016,Higher Crime,LEGAL AID FUND,RUSTEM GUARDIAN SOLICITORS,1051659:145218557,"43,904.44",Legal Aid Payment Higher Crime
MINISTRY OF JUSTICE,LEGAL AID AGENCY,07/09/2016,Civil Representation,LEGAL AID FUND,SALLY C BRADLEY,1052834:145221924,"-30,000.00",Legal Aid Payment Civil Representation
MINISTRY OF JUSTICE,LEGAL AID AGENCY,07/09/2016,Civil Representation,LEGAL AID FUND,SALLY C BRADLEY,1052834:145222093,"39,820.10",Legal Aid Payment Civil Representation
MINISTRY OF JUSTICE,LEGAL AID AGENCY,07/09/2016,Civil Representation,LEGAL AID FUND,SALLY C BRADLEY,1052834:145222173,"39,820.10",Legal Aid Payment Civil Representation
MINISTRY OF JUSTICE,LEGAL AID AGENCY,07/09/2016,Civil Representation,LEGAL AID FUND,SALLY C BRADLEY,1052834:145222179,"39,820.10",Legal Aid Payment Civil Representation
MINISTRY OF JUSTICE,LEGAL AID AGENCY,07/09/2016,Civil Representation,LEGAL AID FUND,SARAH E KILVINGTON,1052916:145222926,"27,075.60",Legal Aid Payment Civil Representation
MINISTRY OF JUSTICE,LEGAL AID AGENCY,07/09/2016,Higher Crime,LEGAL AID FUND,SHEARMAN BOWEN & CO,1053821:145196594,"34,311.85",Legal Aid Payment Higher Crime
MINISTRY OF JUSTICE,LEGAL AID AGENCY,07/09/2016,Civil Representation,LEGAL AID FUND,SOLOMON LEVY & CO,1051856:145214522,"-32,383.01",Legal Aid Payment Civil Representation
MINISTRY OF JUSTICE,LEGAL AID AGENCY,07/09/2016,Civil Representation,LEGAL AID FUND,SOLOMON LEVY & CO,1051856:145214521,"32,572.01",Legal Aid Payment Civil Representation
MINISTRY OF JUSTICE,LEGAL AID AGENCY,07/09/2016,Higher Crime,LEGAL AID FUND,SONAL DASHANI,1052851:145169061,"29,452.80",Legal Aid Payment Higher Crime
MINISTRY OF JUSTICE,LEGAL AID AGENCY,07/09/2016,Higher Crime,LEGAL AID FUND,ST JAMES SOLICITORS,1051712:145186615,"89,975.11",Legal Aid Payment Higher Crime
MINISTRY OF JUSTICE,LEGAL AID AGENCY,07/09/2016,Civil Representation,LEGAL AID FUND,STEEL & SHAMASH,1052128:145214205,"27,123.54",Legal Aid Payment Civil Representation
MINISTRY OF JUSTICE,LEGAL AID AGENCY,07/09/2016,Higher Crime,LEGAL AID FUND,STEPHEN N SPENCE,1051279:145177779,"47,780.76",Legal Aid Payment Higher Crime
MINISTRY OF JUSTICE,LEGAL AID AGENCY,07/09/2016,Higher Crime,LEGAL AID FUND,STUART MILLER SOLICITORS LTD,1054013:145196565,"41,735.87",Legal Aid Payment Higher Crime
MINISTRY OF JUSTICE,LEGAL AID AGENCY,07/09/2016,Civil Representation,LEGAL AID FUND,VENTERS SOLICITORS,1053599:145164718,"26,693.83",Legal Aid Payment Civil Representation
MINISTRY OF JUSTICE,LEGAL AID AGENCY,07/09/2016,Higher Crime,LEGAL AID FUND,WARWICK SOLICITORS,1053580:145217120,"25,645.54",Legal Aid Payment Higher Crime
MINISTRY OF JUSTICE,LEGAL AID AGENCY,07/09/2016,Higher Crime,LEGAL AID FUND,YASMIN & SHAID SOLICITORS LTD,1051639:145186652,"90,130.99",Legal Aid Payment Higher Crime
MINISTRY OF JUSTICE,LEGAL AID AGENCY,06/09/2016,Civil Representation,LEGAL AID FUND,STEWARTS LAW LLP,1050246:140560111,"-84,654.00",Legal Aid Payment Civil Representation
